Workbook

Sheet Contents
A2: Table of Contents
A4: Timeseries data
A5: Completions
A6: Approvals
A7: Starts
A8: Pipeline
A9: Density
A10: Accessible dwellings
A11: MHCLG data
A12: CIL
A13: Planning Decisions
A16: All data © The London Development Database (LDD) except where stated.

Sheet Timeseries data
A1: Table 3.2 Net Housing Supply in London
B3: 2004/05 | C3: 2005/06 | D3: 2006/07 | E3: 2007/08 | F3: 2008/09 | G3: 2009/10 | H3: 2010/11 | I3: 2011/12 | J3: 2012/03 | K3: 2013/14 | L3: 2014/15 | M3: 2015/16 | N3: 2016/17 | O3: Average
A4: Conventional | B4: 24680 | C4: 25549 | D4: 26647 | E4: 27736 | F4: 29527 | G4: 25093 | H4: 19792 | I4: 23777 | J4: 24648 | K4: 26728 | L4: 30179 | M4: 35080 | N4: 41371 | O4: =AVERAGE(B4:N4) -> 27754.38462
A5: Non-self-contained | B5: 5314 | C5: 792 | D5: 3028 | E5: 1407 | F5: 2764 | G5: 1561 | H5: 2021 | I5: 1282 | J5: 2939 | K5: 4416 | L5: 3976 | M5: 4448 | N5: 4526 | O5: 2959.538462
A6: Vacants | B6: 2519 | C6: -61 | D6: 3608 | E6: 287 | F6: -398 | G6: 2223 | H6: 4882 | I6: 5670 | J6: 2018 | K6: 1057 | L6: -120 | M6: 1070 | N6: -392 | O6: =AVERAGE(B6:N6) -> 1720.230769
A7: Total | B7: 32513 | C7: 26280 | D7: 33283 | E7: 29430 | F7: 31893 | G7: 28877 | H7: 26812 | I7: 30475 | J7: 28911 | K7: 31905 | L7: =SUM(L4:L6) -> 34035 | M7: =SUM(M4:M6) -> 40598 | N7: =SUM(N4:N6) -> 45505 | O7: =AVERAGE(B7:N7) -> 32347.46154
A8: * All long term vacants returning to use from the GOV.UK Housing Live Table 615.
A10: Table 3.3 Net Conventional Housing Approvals
B12: 2004/05 | C12: 2005/06 | D12: 2006/07 | E12: 2007/08 | F12: 2008/09 | G12: 2009/10 | H12: 2010/11 | I12: 2011/12 | J12: 2012/03 | K12: 2013/14 | L12: 2014/15 | M12: 2015/16 | N12: 2016/17 | O12: Average
A13: Central Activities Zone | B13: 4877 | C13: 4281 | D13: 7611 | E13: 4813 | F13: 4208 | G13: 2739 | H13: 4309 | I13: 15698 | J13: 10783 | K13: 8651 | L13: 18480 | M13: 7087 | N13: 7203 | O13: =ROUND(AVERAGE(B13:N13),0) -> 7749
A14: Inner | B14: 26709 | C14: 23647 | D14: 26722 | E14: 40705 | F14: 24092 | G14: 28269 | H14: 22108 | I14: 45026 | J14: 21735 | K14: 32743 | L14: 45314 | M14: 39856 | N14: 27028 | O14: =ROUND(AVERAGE(B14:N14),0) -> 31073
A15: Outer | B15: 23881 | C15: 25387 | D15: 23610 | E15: 35000 | F15: 19273 | G15: 15029 | H15: 31945 | I15: 26033 | J15: 13110 | K15: 26749 | L15: 26117 | M15: 30134 | N15: 35450 | O15: 25517
A16: London Total: | B16: =SUM(B13:B15) -> 55467 | C16: 53315 | D16: 57943 | E16: 80518 | F16: 47573 | G16: 46037 | H16: 58362 | I16: 86757 | J16: 45628 | K16: 68143 | L16: 89911 | M16: 77077 | N16: 69681 | O16: 64339
A18: Table 3.4 Net Conventional Housing Pipeline in London as at End of Financial Year
B20: 2004/05 | C20: 2005/06 | D20: 2006/07 | E20: 2007/08 | F20: 2008/09 | G20: 2009/10 | H20: 2010/11 | I20: 2011/12 | J20: 2012/03 | K20: 2013/14 | L20: 2014/15 | M20: 2015/16 | N20: 2016/17 | O20: Average
A21: Central Activities Zone | B21: 9468 | C21: 9923 | D21: 13180 | E21: 15225 | F21: 16209 | G21: 15416 | H21: 14589 | I21: 24131 | J21: 29488 | K21: 33445 | L21: 39158 | M21: 39541 | N21: 36692 | O21: =ROUND(AVERAGE(B21:N21),0) -> 22805
A22: Inner | B22: 58648 | C22: 63589 | D22: 73303 | E22: 87836 | F22: 87433 | G22: 91942 | H22: 83791 | I22: 100541 | J22: 106378 | K22: 121240 | L22: 132626 | M22: 137955 | N22: 136872 | O22: 98627
A23: Outer | B23: 43563 | C23: 52862 | D23: 57936 | E23: 71067 | F23: 70199 | G23: 67192 | H23: 79795 | I23: 86547 | J23: 82952 | K23: 87920 | L23: 93438 | M23: 100876 | N23: 108707 | O23: 77158
A24: London Total: | B24: =SUM(B21:B23) -> 111679 | C24: 126374 | D24: 144419 | E24: 174128 | F24: 173841 | G24: 174550 | H24: 178175 | I24: 211219 | J24: 218818 | K24: 242605 | L24: 265222 | M24: 278372 | N24: 282271 | O24: =ROUND(AVERAGE(B24:N24),0) -> 198590
A26: Table 3.5 Net Conventional Housing Completions
B28: 2004/05 | C28: 2005/06 | D28: 2006/07 | E28: 2007/08 | F28: 2008/09 | G28: 2009/10 | H28: 2010/11 | I28: 2011/12 | J28: 2012/03 | K28: 2013/14 | L28: 2014/15 | M28: 2015/16 | N28: 2016/17 | O28: Average
A29: Central Activities Zone | B29: 2311 | C29: 2567 | D29: 2391 | E29: 1526 | F29: 1930 | G29: 1911 | H29: 2317 | I29: 1629 | J29: 1564 | K29: 2131 | L29: 2568 | M29: 3638 | N29: 4337 | O29: =AVERAGE(B29:N29) -> 2370.769231
A30: Inner | B30: 10672 | C30: 11817 | D30: 11854 | E30: 12342 | F30: 14464 | G30: 13766 | H30: 9640 | I30: 11284 | J30: 11614 | K30: 12612 | L30: 13737 | M30: 14926 | N30: 18566 | O30: =AVERAGE(B30:N30) -> 12868.76923
A31: Outer | B31: 11697 | C31: 11165 | D31: 12402 | E31: 13868 | F31: 13133 | G31: 9416 | H31: 7835 | I31: 10864 | J31: 11470 | K31: 11985 | L31: 13874 | M31: 16516 | N31: 18468 | O31: 12514.84615
A32: All boroughs | B32: =SUM(B29:B31) -> 24680 | C32: 25549 | D32: 26647 | E32: 27736 | F32: 29527 | G32: 25093 | H32: 19792 | I32: 23777 | J32: 24648 | K32: 26728 | L32: 30179 | M32: 35080 | N32: 41371 | O32: =AVERAGE(B32:N32) -> 27754.38462

Sheet Completions
A1: Table 3.6 Total Net Completions Against London Plan Benchmark 2016/17
A3: Borough Name | B3: Net conventional completions | C3: Net non-conventional rooms | D3: Long term vacants returning to use | E3: Total | F3: London Plan benchmark | G3: % of target
A4: Barking and Dagenham | B4: 595 | C4: -24 | D4: -5 | E4: =B4+C4+D4 -> 566 | F4: 1236 | G4: =ROUND(E4/F4*100,0)&"%" -> 46%
A5: Barnet | B5: 2228 | C5: -11 | D5: 52 | E5: =B5+C5+D5 -> 2269 | F5: 2349 | G5: =ROUND(E5/F5*100,0)&"%" -> 97%
A6: Bexley | B6: 816 | C6: 0 | D6: -88 | E6: 728 | F6: 446 | G6: 163%
A7: Brent | B7: 1364 | C7: 1494 | D7: 99 | E7: 2957 | F7: 1525 | G7: 194%
A8: Bromley | B8: 914 | C8: 50 | D8: 16 | E8: 980 | F8: 641 | G8: 153%
A9: Camden | B9: 1206 | C9: 199 | D9: -28 | E9: 1377 | F9: 889 | G9: 155%
A10: City of London | B10: 7 | C10: 0 | D10: -110 | E10: -103 | F10: 141 | G10: -73%
A11: Croydon | B11: 2820 | C11: 82 | D11: -48 | E11: 2854 | F11: 1435 | G11: 199%
A12: Ealing | B12: 1170 | C12: 332 | D12: -106 | E12: 1396 | F12: 1297 | G12: 108%
A13: Enfield | B13: 903 | C13: 106 | D13: 168 | E13: 1177 | F13: 798 | G13: 147%
A14: Greenwich | B14: 2442 | C14: 7 | D14: -137 | E14: 2312 | F14: 2685 | G14: 86%
A15: Hackney | B15: 1180 | C15: 0 | D15: 121 | E15: 1301 | F15: 1599 | G15: 81%
A16: Hammersmith and Fulham | B16: 984 | C16: 8 | D16: 52 | E16: 1044 | F16: 1031 | G16: 101%
A17: Haringey | B17: 737 | C17: -31 | D17: 78 | E17: 784 | F17: 1502 | G17: 52%
A18: Harrow | B18: 655 | C18: 35 | D18: -22 | E18: 668 | F18: 593 | G18: 113%
A19: Havering | B19: 602 | C19: -12 | D19: -65 | E19: 525 | F19: 1170 | G19: 45%
A20: Hillingdon | B20: 850 | C20: 27 | D20: -89 | E20: 788 | F20: 559 | G20: 141%
A21: Hounslow | B21: 1150 | C21: 0 | D21: 62 | E21: 1212 | F21: 822 | G21: 147%
A22: Islington | B22: 680 | C22: 900 | D22: -145 | E22: 1435 | F22: 1264 | G22: 114%
A23: Kensington and Chelsea | B23: 194 | C23: -44 | D23: 169 | E23: 319 | F23: 733 | G23: 44%
A24: Kingston upon Thames | B24: 274 | C24: 40 | D24: -87 | E24: 227 | F24: 643 | G24: 35%
A25: Lambeth | B25: 1125 | C25: -12 | D25: 22 | E25: 1135 | F25: 1559 | G25: 73%
A26: Lewisham | B26: 1579 | C26: 611 | D26: -127 | E26: 2063 | F26: 1385 | G26: 149%
A27: London Legacy DC | B27: 222 | C27: 0 | D27: 0 | E27: 222 | F27: 1471 | G27: 15%
A28: Merton | B28: 451 | C28: 14 | D28: -93 | E28: 372 | F28: 411 | G28: 91%
A29: Newham | B29: 2347 | C29: 19 | D29: -116 | E29: 2250 | F29: 1994 | G29: 113%
A30: Redbridge | B30: 780 | C30: 9 | D30: -188 | E30: 601 | F30: 1123 | G30: 54%
A31: Richmond upon Thames | B31: 474 | C31: -35 | D31: -12 | E31: 427 | F31: 315 | G31: 136%
A32: Southwark | B32: 2421 | C32: 271 | D32: -202 | E32: 2490 | F32: 2736 | G32: 91%
A33: Sutton | B33: 652 | C33: 83 | D33: 96 | E33: 831 | F33: 363 | G33: 229%
A34: Tower Hamlets | B34: 4865 | C34: 57 | D34: 108 | E34: 5030 | F34: 3931 | G34: 128%
A35: Waltham Forest | B35: 1033 | C35: -17 | D35: -36 | E35: 980 | F35: 862 | G35: 114%
A36: Wandsworth | B36: 2309 | C36: 370 | D36: 88 | E36: 2767 | F36: 1812 | G36: 153%
A37: Westminster | B37: 1342 | C37: -2 | D37: 181 | E37: 1521 | F37: 1068 | G37: 142%
A38: London | B38: =SUM(B4:B37) -> 41371 | C38: 4526 | D38: =SUM(D4:D37) -> -392 | E38: =SUM(E4:E37) -> 45505 | F38: =SUM(F4:F37) -> 42388 | G38: 107%
A40: Table 3.7 Total net completions against London Plan benchmark for the three year period 2014/15 to 2016/17
A42: Borough Name | B42: Total net completions | C42: Total expected by benchmark | D42: Delivery compared to benchmark
A43: Barking and Dagenham | B43: 1896 | C43: 3537 | D43: 54
A44: Barnet | B44: 5444 | C44: 6953 | D44: 78
A45: Bexley | B45: 1732 | C45: 1227 | D45: 141
A46: Brent | B46: 4017 | C46: 4115 | D46: 98
A47: Bromley | B47: 2108 | C47: 1782 | D47: 118
A48: Camden | B48: 2666 | C48: 2443 | D48: 109
A49: City of London | B49: 310 | C49: 392 | D49: 79
A50: Croydon | B50: 6384 | C50: 4200 | D50: 152
A51: Ealing | B51: 3073 | C51: 3484 | D51: 88
A52: Enfield | B52: 1981 | C52: 2156 | D52: 92
A53: Greenwich | B53: 6378 | C53: 7965 | D53: 80
A54: Hackney | B54: 3958 | C54: 4358 | D54: 91
A55: Hammersmith and Fulham | B55: 2268 | C55: 2677 | D55: 85
A56: Haringey | B56: 1979 | C56: 3824 | D56: 52
A57: Harrow | B57: 1975 | C57: 1536 | D57: 129
A58: Havering | B58: 3030 | C58: 3310 | D58: 92
A59: Hillingdon | B59: 2485 | C59: 1543 | D59: 161
A60: Hounslow | B60: 3032 | C60: 2114 | D60: 143
A61: Islington | B61: 2613 | C61: 3698 | D61: 71
A62: Kensington and Chelsea | B62: 1341 | C62: 2051 | D62: 65
A63: Kingston upon Thames | B63: 1107 | C63: 1661 | D63: 67
A64: Lambeth | B64: 3875 | C64: 4313 | D64: 90
A65: Lewisham | B65: 4565 | C65: 3875 | D65: 118
A66: Merton | B66: 1539 | C66: 1142 | D66: 135
A67: Newham | B67: 5787 | C67: 6488 | D67: 89
A68: Redbridge | B68: 1471 | C68: 3006 | D68: 49
A69: Richmond upon Thames | B69: 1408 | C69: 875 | D69: 161
A70: Southwark | B70: 5014 | C70: 7477 | D70: 67
A71: Sutton | B71: 1497 | C71: 936 | D71: 160
A72: Tower Hamlets | B72: 9635 | C72: 10747 | D72: 90
A73: Waltham Forest | B73: 2700 | C73: 2484 | D73: 109
A74: Wandsworth | B74: 6135 | C74: 4769 | D74: 129
A75: Westminster | B75: 2978 | C75: 2906 | D75: 102
A76: London | B76: 106381 | C76: 114044 | D76: 93
A78: Notes
A79: The three year total is calcultated as one year at the 32k target from the 2011 London Plan and two years at the 42k target introduced in the 2015 Plan
A80: A separate target for the LLDC was introduced in the 2015 Plan so it has not been included in this table. Completions in the LLDC have been excluded from the completions totals for the boroughs with which it overlaps
A82: Table 3.8 Gross conventional housing completions by tenure and number of bedrooms 2016/17
A84: Unit Tenure | B84: 1 bed | C84: 2 beds | D84: 3 beds | E84: 4 beds or more | F84: Total
A85: Social Rented | B85: 1018 | C85: 1120 | D85: 814 | E85: 283 | F85: 3235
A86: Intermediate | B86: 1151 | C86: 1373 | D86: 409 | E86: 40 | F86: 2973
A87: Affordable Rent | B87: 586 | C87: 840 | D87: 481 | E87: 213 | F87: 2120
A88: Market | B88: 16162 | C88: 14446 | D88: 4937 | E88: 1879 | F88: 37424
A89: All tenures | B89: 18917 | C89: 17779 | D89: 6641 | E89: 2415 | F89: 45752
A90: Unit Tenure | B90: 1 bed | C90: 2 beds | D90: 3 beds | E90: 4 beds or more | F90: % 3 or more
A91: Social Rented | B91: 0.314683153 | C91: 0.3462132921 | D91: 0.2516228748 | E91: 0.08748068006 | F91: =D91+E91 -> 0.3391035549
A92: Intermediate | B92: 0.3871510259 | C92: 0.4618230743 | D92: 0.1375714766 | E92: 0.01345442314 | F92: =D92+E92 -> 0.1510258998
A93: Affordable Rent | B93: 0.2764150943 | C93: 0.3962264151 | D93: 0.2268867925 | E93: 0.1004716981 | F93: =D93+E93 -> 0.3273584906
A94: Market | B94: 0.4318619068 | C94: 0.3860089782 | D94: 0.1319206926 | E94: 0.0502084224 | F94: =D94+E94 -> 0.182129115
A95: All tenures | B95: 0.4134682637 | C95: 0.3885950341 | D95: 0.1451521245 | E95: 0.05278457772 | F95: =D95+E95 -> 0.1979367022
A97: Table 3.9 Gross conventional housing completions by number of bedrooms 2016/17
A99: Borough | B99: 1 | C99: 2 | D99: 3 | E99: 4 or more | F99: Total | G99: % 3 or more
A100: Barking and Dagenham | B100: 139 | C100: 241 | D100: 168 | E100: 53 | F100: 601 | G100: 0.3677204659
A101: Barnet | B101: 704 | C101: 1145 | D101: 436 | E101: 99 | F101: 2384 | G101: 0.2244127517
A102: Bexley | B102: 159 | C102: 355 | D102: 151 | E102: 176 | F102: 841 | G102: 0.38882283
A103: Brent | B103: 654 | C103: 653 | D103: 148 | E103: 23 | F103: 1478 | G103: 0.1156968877
A104: Bromley | B104: 428 | C104: 391 | D104: 133 | E104: 83 | F104: 1035 | G104: 0.2086956522
A105: Camden | B105: 601 | C105: 534 | D105: 134 | E105: 38 | F105: 1307 | G105: 0.1315990819
A106: City of London | B106: 5 | C106: 7 | D106: 0 | E106: 0 | F106: 12 | G106: 0
A107: Croydon | B107: 1627 | C107: 878 | D107: 408 | E107: 66 | F107: 2979 | G107: 0.1591137966
A108: Ealing | B108: 652 | C108: 645 | D108: 205 | E108: 64 | F108: 1566 | G108: 0.1717752235
A109: Enfield | B109: 462 | C109: 289 | D109: 175 | E109: 96 | F109: 1022 | G109: 0.2651663405
A110: Greenwich | B110: 1444 | C110: 765 | D110: 297 | E110: 30 | F110: 2536 | G110: 0.1289432177
A111: Hackney | B111: 494 | C111: 505 | D111: 282 | E111: 89 | F111: 1370 | G111: 0.2708029197
A112: Hammersmith and Fulham | B112: 531 | C112: 480 | D112: 158 | E112: 161 | F112: 1330 | G112: 0.2398496241
A113: Haringey | B113: 468 | C113: 330 | D113: 103 | E113: 48 | F113: 949 | G113: 0.1591148577
A114: Harrow | B114: 259 | C114: 314 | D114: 94 | E114: 59 | F114: 726 | G114: 0.2107438017
A115: Havering | B115: 157 | C115: 206 | D115: 190 | E115: 124 | F115: 677 | G115: 0.4638109306
A116: Hillingdon | B116: 396 | C116: 318 | D116: 65 | E116: 118 | F116: 897 | G116: 0.2040133779
A117: Hounslow | B117: 696 | C117: 362 | D117: 114 | E117: 10 | F117: 1182 | G117: 0.1049069374
A118: Islington | B118: 335 | C118: 301 | D118: 79 | E118: 40 | F118: 755 | G118: 0.157615894
A119: Kensington and Chelsea | B119: 156 | C119: 85 | D119: 77 | E119: 77 | F119: 395 | G119: 0.3898734177
A120: Kingston upon Thames | B120: 133 | C120: 107 | D120: 31 | E120: 34 | F120: 305 | G120: 0.2131147541
A121: Lambeth | B121: 790 | C121: 571 | D121: 198 | E121: 58 | F121: 1617 | G121: 0.1583178726
A122: Lewisham | B122: 604 | C122: 794 | D122: 216 | E122: 42 | F122: 1656 | G122: 0.1557971014
A123: Merton | B123: 246 | C123: 176 | D123: 49 | E123: 60 | F123: 531 | G123: 0.2052730697
A124: Newham | B124: 1095 | C124: 1058 | D124: 387 | E124: 54 | F124: 2594 | G124: 0.1700077101
A125: Redbridge | B125: 403 | C125: 277 | D125: 81 | E125: 60 | F125: 821 | G125: 0.1717417783
A126: Richmond upon Thames | B126: 203 | C126: 240 | D126: 46 | E126: 48 | F126: 537 | G126: 0.1750465549
A127: Southwark | B127: 901 | C127: 1136 | D127: 396 | E127: 96 | F127: 2529 | G127: 0.1945432977
A128: Sutton | B128: 379 | C128: 299 | D128: 25 | E128: 20 | F128: 723 | G128: 0.0622406639
A129: Tower Hamlets | B129: 2159 | C129: 1962 | D129: 832 | E129: 171 | F129: 5124 | G129: 0.1957455113
A130: Waltham Forest | B130: 377 | C130: 476 | D130: 186 | E130: 69 | F130: 1108 | G130: 0.2301444043
A131: Wandsworth | B131: 755 | C131: 1282 | D131: 301 | E131: 123 | F131: 2461 | G131: 0.1722876879
A132: Westminster | B132: 505 | C132: 597 | D132: 476 | E132: 126 | F132: 1704 | G132: 0.353286385
A133: London | B133: =SUM(B100:B132) -> 18917 | C133: =SUM(C100:C132) -> 17779 | D133: =SUM(D100:D132) -> 6641 | E133: =SUM(E100:E132) -> 2415 | F133: =SUM(B133:E133) -> 45752 | G133: 0.1979367022
A135: Table 3.10 Gross conventional affordable housing completions by number of bedrooms 2016/17
A137: Borough | B137: 1 | C137: 2 | D137: 3 | E137: 4+ | F137: Total | G137: % 3 or more
A138: Barking and Dagenham | B138: 45 | C138: 55 | D138: 48 | E138: 27 | F138: =SUM(B138:E138) -> 175 | G138: 0.4285714286
A139: Barnet | B139: 140 | C139: 186 | D139: 131 | E139: 13 | F139: 470 | G139: 0.3063829787
A140: Bexley | B140: 34 | C140: 112 | D140: 22 | E140: 12 | F140: 180 | G140: 0.1888888889
A141: Brent | B141: 111 | C141: 122 | D141: 45 | E141: 3 | F141: 281 | G141: 0.1708185053
A142: Bromley | B142: 35 | C142: 43 | D142: 10 | E142: 5 | F142: 93 | G142: 0.1612903226
A143: Camden | B143: 52 | C143: 55 | D143: 36 | E143: 7 | F143: 150 | G143: 0.2866666667
A144: City of London | B144: 0 | C144: 0 | D144: 0 | E144: 0 | F144: 0 | G144: 0
A145: Croydon | B145: 80 | C145: 167 | D145: 84 | E145: 3 | F145: 334 | G145: 0.2604790419
A146: Ealing | B146: 179 | C146: 168 | D146: 78 | E146: 31 | F146: 456 | G146: 0.2390350877
A147: Enfield | B147: 56 | C147: 125 | D147: 65 | E147: 56 | F147: 302 | G147: 0.4006622517
A148: Greenwich | B148: 144 | C148: 211 | D148: 88 | E148: 5 | F148: 448 | G148: 0.2075892857
A149: Hackney | B149: 91 | C149: 122 | D149: 43 | E149: 25 | F149: 281 | G149: 0.2419928826
A150: Hammersmith and Fulham | B150: 54 | C150: 50 | D150: 8 | E150: 0 | F150: 112 | G150: 0.07142857143
A151: Haringey | B151: 116 | C151: 38 | D151: 18 | E151: 16 | F151: 188 | G151: 0.1808510638
A152: Harrow | B152: 2 | C152: 2 | D152: 0 | E152: 0 | F152: 4 | G152: 0
A153: Havering | B153: 9 | C153: 58 | D153: 36 | E153: 0 | F153: 103 | G153: 0.3495145631
A154: Hillingdon | B154: 14 | C154: 36 | D154: 9 | E154: 0 | F154: 59 | G154: 0.1525423729
A155: Hounslow | B155: 148 | C155: 110 | D155: 25 | E155: 0 | F155: 283 | G155: 0.08833922261
A156: Islington | B156: 36 | C156: 29 | D156: 23 | E156: 23 | F156: 111 | G156: 0.4144144144
A157: Kensington and Chelsea | B157: 2 | C157: 11 | D157: 4 | E157: 6 | F157: 23 | G157: 0.4347826087
A158: Kingston upon Thames | B158: 7 | C158: 5 | D158: 3 | E158: 0 | F158: 15 | G158: 0.2
A159: Lambeth | B159: 293 | C159: 132 | D159: 99 | E159: 15 | F159: 539 | G159: 0.2115027829
A160: Lewisham | B160: 67 | C160: 133 | D160: 80 | E160: 23 | F160: 303 | G160: 0.3399339934
A161: Merton | B161: 23 | C161: 29 | D161: 21 | E161: 1 | F161: 74 | G161: 0.2972972973
A162: Newham | B162: 92 | C162: 157 | D162: 96 | E162: 20 | F162: 365 | G162: 0.3178082192
A163: Redbridge | B163: 25 | C163: 48 | D163: 3 | E163: 2 | F163: 78 | G163: 0.0641025641
A164: Richmond upon Thames | B164: 21 | C164: 18 | D164: 2 | E164: 0 | F164: 41 | G164: 0.0487804878
A165: Southwark | B165: 183 | C165: 223 | D165: 141 | E165: 46 | F165: 593 | G165: 0.3153456998
A166: Sutton | B166: 22 | C166: 1 | D166: 0 | E166: 0 | F166: 23 | G166: 0
A167: Tower Hamlets | B167: 402 | C167: 489 | D167: 358 | E167: 154 | F167: 1403 | G167: 0.364932288
A168: Waltham Forest | B168: 46 | C168: 152 | D168: 72 | E168: 37 | F168: 307 | G168: 0.3550488599
A169: Wandsworth | B169: 179 | C169: 179 | D169: 18 | E169: 2 | F169: 378 | G169: 0.05291005291
A170: Westminster | B170: 47 | C170: 67 | D170: 38 | E170: 4 | F170: 156 | G170: 0.2692307692
A171: London | B171: =SUM(B138:B170) -> 2755 | C171: =SUM(C138:C170) -> 3333 | D171: 1704 | E171: 536 | F171: =SUM(F138:F170) -> 8328 | G171: 0.2689721422
A173: Table 3.11 Net Conventional Completions by Development Type 2016/17
B175: New build | E175: Conversion | H175: Change of use | K175: Total
A176: Borough | B176: Lost | C176: Gained | D176: Net | E176: Lost | F176: Gained | G176: Net | H176: Lost | I176: Gained | J176: Net | K176: Total losses | L176: Total Gross Completions | M176: Total Net Completions
A177: Barking and Dagenham | B177: 0 | C177: 556 | D177: 556 | E177: 6 | F177: 15 | G177: 9 | H177: 0 | I177: 30 | J177: 30 | K177: 6 | L177: 601 | M177: 595
A178: Barnet | B178: 69 | C178: 1861 | D178: 1792 | E178: 87 | F178: 195 | G178: 108 | H178: 0 | I178: 328 | J178: 328 | K178: 156 | L178: 2384 | M178: 2228
A179: Bexley | B179: 13 | C179: 796 | D179: 783 | E179: 11 | F179: 17 | G179: 6 | H179: 1 | I179: 28 | J179: 27 | K179: 25 | L179: 841 | M179: 816
A180: Brent | B180: 2 | C180: 1040 | D180: 1038 | E180: 111 | F180: 141 | G180: 30 | H180: 1 | I180: 297 | J180: 296 | K180: 114 | L180: 1478 | M180: 1364
A181: Bromley | B181: 95 | C181: 498 | D181: 403 | E181: 24 | F181: 50 | G181: 26 | H181: 2 | I181: 487 | J181: 485 | K181: 121 | L181: 1035 | M181: 914
A182: Camden | B182: 19 | C182: 623 | D182: 604 | E182: 80 | F182: 97 | G182: 17 | H182: 2 | I182: 587 | J182: 585 | K182: 101 | L182: 1307 | M182: 1206
A183: City of London | B183: 0 | C183: 0 | D183: 0 | E183: 1 | F183: 2 | G183: 1 | H183: 4 | I183: 10 | J183: 6 | K183: 5 | L183: 12 | M183: 7
A184: Croydon | B184: 45 | C184: 1456 | D184: 1411 | E184: 110 | F184: 319 | G184: 209 | H184: 4 | I184: 1204 | J184: 1200 | K184: 159 | L184: 2979 | M184: 2820
A185: Ealing | B185: 228 | C185: 1033 | D185: 805 | E185: 159 | F185: 332 | G185: 173 | H185: 9 | I185: 201 | J185: 192 | K185: 396 | L185: 1566 | M185: 1170
A186: Enfield | B186: 55 | C186: 534 | D186: 479 | E186: 52 | F186: 109 | G186: 57 | H186: 12 | I186: 379 | J186: 367 | K186: 119 | L186: 1022 | M186: 903
A187: Greenwich | B187: 59 | C187: 2321 | D187: 2262 | E187: 34 | F187: 45 | G187: 11 | H187: 1 | I187: 170 | J187: 169 | K187: 94 | L187: 2536 | M187: 2442
A188: Hackney | B188: 77 | C188: 1091 | D188: 1014 | E188: 96 | F188: 160 | G188: 64 | H188: 4 | I188: 119 | J188: 115 | K188: 177 | L188: 1370 | M188: 1193
A189: Hammersmith and Fulham | B189: 9 | C189: 377 | D189: 368 | E189: 336 | F189: 476 | G189: 140 | H189: 1 | I189: 477 | J189: 476 | K189: 346 | L189: 1330 | M189: 984
A190: Haringey | B190: 69 | C190: 511 | D190: 442 | E190: 139 | F190: 211 | G190: 72 | H190: 4 | I190: 227 | J190: 223 | K190: 212 | L190: 949 | M190: 737
A191: Harrow | B191: 20 | C191: 392 | D191: 372 | E191: 46 | F191: 90 | G191: 44 | H191: 5 | I191: 244 | J191: 239 | K191: 71 | L191: 726 | M191: 655
A192: Havering | B192: 64 | C192: 493 | D192: 429 | E192: 10 | F192: 21 | G192: 11 | H192: 1 | I192: 163 | J192: 162 | K192: 75 | L192: 677 | M192: 602
A193: Hillingdon | B193: 25 | C193: 555 | D193: 530 | E193: 21 | F193: 37 | G193: 16 | H193: 1 | I193: 305 | J193: 304 | K193: 47 | L193: 897 | M193: 850
A194: Hounslow | B194: 27 | C194: 638 | D194: 611 | E194: 5 | F194: 35 | G194: 30 | H194: 0 | I194: 509 | J194: 509 | K194: 32 | L194: 1182 | M194: 1150
A195: Islington | B195: 17 | C195: 376 | D195: 359 | E195: 57 | F195: 88 | G195: 31 | H195: 1 | I195: 291 | J195: 290 | K195: 75 | L195: 755 | M195: 680
A196: Kensington and Chelsea | B196: 31 | C196: 165 | D196: 134 | E196: 151 | F196: 141 | G196: -10 | H196: 19 | I196: 89 | J196: 70 | K196: 201 | L196: 395 | M196: 194
A197: Kingston upon Thames | B197: 18 | C197: 126 | D197: 108 | E197: 12 | F197: 35 | G197: 23 | H197: 1 | I197: 144 | J197: 143 | K197: 31 | L197: 305 | M197: 274
A198: Lambeth | B198: 388 | C198: 1087 | D198: 699 | E198: 103 | F198: 152 | G198: 49 | H198: 1 | I198: 378 | J198: 377 | K198: 492 | L198: 1617 | M198: 1125
A199: Lewisham | B199: 32 | C199: 1351 | D199: 1319 | E199: 45 | F199: 77 | G199: 32 | H199: 0 | I199: 228 | J199: 228 | K199: 77 | L199: 1656 | M199: 1579
A200: Merton | B200: 34 | C200: 259 | D200: 225 | E200: 44 | F200: 64 | G200: 20 | H200: 2 | I200: 208 | J200: 206 | K200: 80 | L200: 531 | M200: 451
A201: Newham | B201: 3 | C201: 2360 | D201: 2357 | E201: 61 | F201: 128 | G201: 67 | H201: 3 | I201: 106 | J201: 103 | K201: 67 | L201: 2594 | M201: 2527
A202: Redbridge | B202: 7 | C202: 474 | D202: 467 | E202: 33 | F202: 79 | G202: 46 | H202: 1 | I202: 268 | J202: 267 | K202: 41 | L202: 821 | M202: 780
A203: Richmond upon Thames | B203: 17 | C203: 286 | D203: 269 | E203: 46 | F203: 41 | G203: -5 | H203: 0 | I203: 210 | J203: 210 | K203: 63 | L203: 537 | M203: 474
A204: Southwark | B204: 70 | C204: 2356 | D204: 2286 | E204: 37 | F204: 93 | G204: 56 | H204: 1 | I204: 80 | J204: 79 | K204: 108 | L204: 2529 | M204: 2421
A205: Sutton | B205: 17 | C205: 199 | D205: 182 | E205: 49 | F205: 68 | G205: 19 | H205: 5 | I205: 456 | J205: 451 | K205: 71 | L205: 723 | M205: 652
A206: Tower Hamlets | B206: 205 | C206: 4628 | D206: 4423 | E206: 25 | F206: 43 | G206: 18 | H206: 0 | I206: 453 | J206: 453 | K206: 230 | L206: 5124 | M206: 4894
A207: Waltham Forest | B207: 3 | C207: 785 | D207: 782 | E207: 51 | F207: 126 | G207: 75 | H207: 21 | I207: 197 | J207: 176 | K207: 75 | L207: 1108 | M207: 1033
A208: Wandsworth | B208: 48 | C208: 2067 | D208: 2019 | E208: 104 | F208: 158 | G208: 54 | H208: 0 | I208: 236 | J208: 236 | K208: 152 | L208: 2461 | M208: 2309
A209: Westminster | B209: 129 | C209: 1015 | D209: 886 | E209: 220 | F209: 135 | G209: -85 | H209: 13 | I209: 554 | J209: 541 | K209: 362 | L209: 1704 | M209: 1342
A210: London | B210: =SUM(B177:B209) -> 1895 | C210: 32309 | D210: 30414 | E210: 2366 | F210: 3780 | G210: 1414 | H210: 120 | I210: 9663 | J210: 9543 | K210: 4381 | L210: 45752 | M210: 41371
A212: Table 3.12 Conventional Completions by Tenure FY2016/17
A214: Borough | B214: Existing units | F214: Proposed units | J214: Net units | N214: Net affordable %
... 186 more rows

Sheet Approvals
A1: Table 3.18 Conventional Approvals by Tenure FY2016/17
A3: Borough | B3: Existing units | F3: Proposed units | J3: Net units | N3: Net affordable %
B4: Market | C4: Social Rented | D4: Intermediate | E4: Affordable Rent | F4: Market | G4: Social Rented | H4: Intermediate | I4: Affordable Rent | J4: Market | K4: Social Rented | L4: Intermediate | M4: Affordable Rent
A5: Barking and Dagenham | B5: 9 | C5: 0 | D5: 0 | E5: 0 | F5: =SUM(B5:E5) -> 9 | G5: 222 | H5: 0 | I5: 6 | J5: 1213 | K5: 222 | L5: 0 | M5: 6 | N5: 16
A6: Barnet | B6: 419 | C6: 15 | D6: 0 | E6: 0 | F6: =SUM(B6:E6) -> 434 | G6: 107 | H6: 100 | I6: 118 | J6: 3046 | K6: 92 | L6: 100 | M6: 118 | N6: 9
A7: Bexley | B7: 71 | C7: 201 | D7: 6 | E7: 0 | F7: 278 | G7: 0 | H7: 332 | I7: 519 | J7: 1764 | K7: -201 | L7: 326 | M7: 519 | N7: 27
A8: Brent | B8: 258 | C8: 41 | D8: 0 | E8: 0 | F8: 299 | G8: 412 | H8: 288 | I8: 128 | J8: 3071 | K8: 371 | L8: 288 | M8: 128 | N8: 20
A9: Bromley | B9: 150 | C9: 0 | D9: 0 | E9: 0 | F9: 150 | G9: 0 | H9: 35 | I9: 50 | J9: 1023 | K9: 0 | L9: 35 | M9: 50 | N9: 8
A10: Camden | B10: 237 | C10: 1 | D10: 5 | E10: 0 | F10: 243 | G10: 252 | H10: 47 | I10: 0 | J10: 808 | K10: 251 | L10: 42 | M10: 0 | N10: 27
A11: City of London | B11: 0 | C11: 0 | D11: 0 | E11: 0 | F11: 0 | G11: 0 | H11: 0 | I11: 0 | J11: 404 | K11: 0 | L11: 0 | M11: 0 | N11: 0
A12: Croydon | B12: 239 | C12: 8 | D12: 2 | E12: 0 | F12: 249 | G12: 30 | H12: 176 | I12: 139 | J12: 1887 | K12: 22 | L12: 174 | M12: 139 | N12: 15
A13: Ealing | B13: 402 | C13: 151 | D13: 1 | E13: 0 | F13: 554 | G13: 184 | H13: 506 | I13: 307 | J13: 3671 | K13: 33 | L13: 505 | M13: 307 | N13: 19
A14: Enfield | B14: 124 | C14: 2 | D14: 0 | E14: 0 | F14: 126 | G14: 62 | H14: 35 | I14: 0 | J14: 650 | K14: 60 | L14: 35 | M14: 0 | N14: 13
A15: Greenwich | B15: 50 | C15: 0 | D15: 0 | E15: 0 | F15: 50 | G15: 249 | H15: 138 | I15: 31 | J15: 1773 | K15: 249 | L15: 138 | M15: 31 | N15: 19
A16: Hackney | B16: 311 | C16: 10 | D16: 7 | E16: 0 | F16: 328 | G16: 60 | H16: 186 | I16: 33 | J16: 1797 | K16: 50 | L16: 179 | M16: 33 | N16: 13
A17: Hammersmith and Fulham | B17: 335 | C17: 0 | D17: 0 | E17: 0 | F17: 335 | G17: 47 | H17: 15 | I17: 0 | J17: 387 | K17: 47 | L17: 15 | M17: 0 | N17: 14
A18: Haringey | B18: 143 | C18: 0 | D18: 0 | E18: 0 | F18: 143 | G18: 21 | H18: 60 | I18: 95 | J18: 1548 | K18: 21 | L18: 60 | M18: 95 | N18: 10
A19: Harrow | B19: 93 | C19: 0 | D19: 0 | E19: 0 | F19: 93 | G19: 1 | H19: 121 | I19: 135 | J19: 1073 | K19: 1 | L19: 121 | M19: 135 | N19: 19
A20: Havering | B20: 52 | C20: 28 | D20: 0 | E20: 0 | F20: 80 | G20: 67 | H20: 30 | I20: 9 | J20: 825 | K20: 39 | L20: 30 | M20: 9 | N20: 9
A21: Hillingdon | B21: 100 | C21: 2 | D21: 1 | E21: 0 | F21: 103 | G21: 10 | H21: 7 | I21: 31 | J21: 997 | K21: 8 | L21: 6 | M21: 31 | N21: 4
A22: Hounslow | B22: 90 | C22: 34 | D22: 14 | E22: 0 | F22: 138 | G22: 5 | H22: 354 | I22: 362 | J22: 2310 | K22: -29 | L22: 340 | M22: 362 | N22: 23
A23: Islington | B23: 64 | C23: 0 | D23: 0 | E23: 0 | F23: 64 | G23: 111 | H23: 23 | I23: 0 | J23: 391 | K23: 111 | L23: 23 | M23: 0 | N23: 26
A24: Kensington and Chelsea | B24: 275 | C24: 2 | D24: 6 | E24: 0 | F24: 283 | G24: 9 | H24: 8 | I24: 0 | J24: 453 | K24: 7 | L24: 2 | M24: 0 | N24: 2
A25: Kingston upon Thames | B25: 118 | C25: 0 | D25: 6 | E25: 0 | F25: 124 | G25: 8 | H25: 87 | I25: 41 | J25: 1284 | K25: 8 | L25: 81 | M25: 41 | N25: 9
A26: Lambeth | B26: 125 | C26: 78 | D26: 0 | E26: 0 | F26: 203 | G26: 297 | H26: 256 | I26: 145 | J26: 2702 | K26: 219 | L26: 256 | M26: 145 | N26: 19
A27: Lewisham | B27: 109 | C27: 5 | D27: 0 | E27: 0 | F27: 114 | G27: 110 | H27: 65 | I27: 65 | J27: 967 | K27: 105 | L27: 65 | M27: 65 | N27: 20
A28: Merton | B28: 141 | C28: 2 | D28: 0 | E28: 0 | F28: 143 | G28: 21 | H28: 26 | I28: 48 | J28: 856 | K28: 19 | L28: 26 | M28: 48 | N28: 10
A29: Newham | B29: 80 | C29: 1 | D29: 0 | E29: 0 | F29: 4980 | G29: 144 | H29: 676 | I29: 730 | J29: 4900 | K29: 143 | L29: 676 | M29: 730 | N29: 24
A30: Redbridge | B30: 90 | C30: 0 | D30: 0 | E30: 0 | F30: 1047 | G30: 45 | H30: 49 | I30: 145 | J30: 957 | K30: 45 | L30: 49 | M30: 145 | N30: 20
A31: Richmond upon Thames | B31: 86 | C31: 0 | D31: 0 | E31: 0 | F31: 649 | G31: 42 | H31: 5 | I31: 17 | J31: 563 | K31: 42 | L31: 5 | M31: 17 | N31: 10
A32: Southwark | B32: 92 | C32: 0 | D32: 1 | E32: 0 | F32: 1218 | G32: 279 | H32: 109 | I32: 0 | J32: 1126 | K32: 279 | L32: 108 | M32: 0 | N32: 26
A33: Sutton | B33: 90 | C33: 11 | D33: 0 | E33: 0 | F33: 1151 | G33: 102 | H33: 18 | I33: 158 | J33: 1061 | K33: 91 | L33: 18 | M33: 158 | N33: 20
A34: Tower Hamlets | B34: 86 | C34: 18 | D34: 0 | E34: 0 | F34: 6624 | G34: 550 | H34: 469 | I34: 760 | J34: 6538 | K34: 532 | L34: 469 | M34: 760 | N34: 21
A35: Waltham Forest | B35: 141 | C35: 182 | D35: 0 | E35: 0 | F35: 2064 | G35: 228 | H35: 184 | I35: 147 | J35: 1923 | K35: 46 | L35: 184 | M35: 147 | N35: 16
A36: Wandsworth | B36: 555 | C36: 94 | D36: 24 | E36: 0 | F36: 2808 | G36: 205 | H36: 441 | I36: 274 | J36: 2253 | K36: 111 | L36: 417 | M36: 274 | N36: 26
A37: Westminster | B37: 605 | C37: 51 | D37: 0 | E37: 0 | F37: 3238 | G37: 184 | H37: 408 | I37: 26 | J37: 2633 | K37: 133 | L37: 408 | M37: 26 | N37: 18
A38: Total | B38: =SUM(B5:B37) -> 5740 | C38: 937 | D38: 73 | E38: 0 | F38: 28322 | G38: 4064 | H38: 5254 | I38: 4519 | J38: 56854 | K38: 3127 | L38: 5181 | M38: 4519 | N38: 18
A40: Table 3.19 Conventional Approvals in Major Planning Permissions by Tenure FY2016/17
A42: Borough | B42: Existing units | F42: Proposed units | J42: Net units | N42: Net affordable %
B43: Market | C43: Social Rented | D43: Intermediate | E43: Affordable Rent | F43: Market | G43: Social Rented | H43: Intermediate | I43: Affordable Rent | J43: Market | K43: Social Rented | L43: Intermediate | M43: Affordable Rent
A44: Barking and Dagenham | B44: 2 | C44: 0 | D44: 0 | E44: 0 | F44: 1104 | G44: 216 | H44: 0 | I44: 6 | J44: 1102 | K44: 216 | L44: 0 | M44: 6 | N44: 17
A45: Barnet | B45: 108 | C45: 0 | D45: 0 | E45: 0 | F45: 2103 | G45: 70 | H45: 100 | I45: 102 | J45: 1995 | K45: 70 | L45: 100 | M45: 102 | N45: 12
A46: Bexley | B46: 35 | C46: 201 | D46: 0 | E46: 0 | F46: 1493 | G46: 0 | H46: 321 | I46: 519 | J46: 1458 | K46: -201 | L46: 321 | M46: 519 | N46: 30
A47: Brent | B47: 63 | C47: 40 | D47: 0 | E47: 0 | F47: 2135 | G47: 396 | H47: 288 | I47: 128 | J47: 2072 | K47: 356 | L47: 288 | M47: 128 | N47: 27
A48: Bromley | B48: 9 | C48: 0 | D48: 0 | E48: 0 | F48: 432 | G48: 0 | H48: 34 | I48: 50 | J48: 423 | K48: 0 | L48: 34 | M48: 50 | N48: 17
A49: Camden | B49: 22 | C49: 0 | D49: 5 | E49: 0 | F49: 553 | G49: 249 | H49: 47 | I49: 0 | J49: 531 | K49: 249 | L49: 42 | M49: 0 | N49: 35
A50: City of London | B50: 0 | C50: 0 | D50: 0 | E50: 0 | F50: 396 | G50: 0 | H50: 0 | I50: 0 | J50: 396 | K50: 0 | L50: 0 | M50: 0 | N50: 0
A51: Croydon | B51: 53 | C51: 0 | D51: 0 | E51: 0 | F51: 713 | G51: 25 | H51: 169 | I51: 139 | J51: 660 | K51: 25 | L51: 169 | M51: 139 | N51: 34
A52: Ealing | B52: 83 | C52: 148 | D52: 0 | E52: 0 | F52: 2792 | G52: 181 | H52: 504 | I52: 305 | J52: 2709 | K52: 33 | L52: 504 | M52: 305 | N52: 24
A53: Enfield | B53: 7 | C53: 0 | D53: 0 | E53: 0 | F53: 230 | G53: 48 | H53: 32 | I53: 0 | J53: 223 | K53: 48 | L53: 32 | M53: 0 | N53: 26
A54: Greenwich | B54: 2 | C54: 0 | D54: 0 | E54: 0 | F54: 1593 | G54: 249 | H54: 138 | I54: 31 | J54: 1591 | K54: 249 | L54: 138 | M54: 31 | N54: 21
A55: Hackney | B55: 18 | C55: 0 | D55: 1 | E55: 0 | F55: 1567 | G55: 45 | H55: 181 | I55: 33 | J55: 1549 | K55: 45 | L55: 180 | M55: 33 | N55: 14
A56: Hammersmith and Fulham | B56: 86 | C56: 0 | D56: 0 | E56: 0 | F56: 144 | G56: 47 | H56: 13 | I56: 0 | J56: 58 | K56: 47 | L56: 13 | M56: 0 | N56: 51
A57: Haringey | B57: 5 | C57: 0 | D57: 0 | E57: 0 | F57: 1099 | G57: 17 | H57: 54 | I57: 91 | J57: 1094 | K57: 17 | L57: 54 | M57: 91 | N57: 13
A58: Harrow | B58: 10 | C58: 0 | D58: 0 | E58: 0 | F58: 459 | G58: 0 | H58: 116 | I58: 132 | J58: 449 | K58: 0 | L58: 116 | M58: 132 | N58: 36
A59: Havering | B59: 14 | C59: 9 | D59: 0 | E59: 0 | F59: 342 | G59: 51 | H59: 25 | I59: 0 | J59: 328 | K59: 42 | L59: 25 | M59: 0 | N59: 17
A60: Hillingdon | B60: 0 | C60: 0 | D60: 0 | E60: 0 | F60: 564 | G60: 0 | H60: 5 | I60: 31 | J60: 564 | K60: 0 | L60: 5 | M60: 31 | N60: 6
A61: Hounslow | B61: 9 | C61: 34 | D61: 14 | E61: 0 | F61: 1250 | G61: 5 | H61: 354 | I61: 362 | J61: 1241 | K61: -29 | L61: 340 | M61: 362 | N61: 35
A62: Islington | B62: 0 | C62: 0 | D62: 0 | E62: 0 | F62: 184 | G62: 96 | H62: 23 | I62: 0 | J62: 184 | K62: 96 | L62: 23 | M62: 0 | N62: 39
A63: Kensington and Chelsea | B63: 96 | C63: 0 | D63: 0 | E63: 0 | F63: 420 | G63: 0 | H63: 0 | I63: 0 | J63: 324 | K63: 0 | L63: 0 | M63: 0 | N63: 0
A64: Kingston upon Thames | B64: 56 | C64: 0 | D64: 6 | E64: 0 | F64: 1086 | G64: 6 | H64: 87 | I64: 41 | J64: 1030 | K64: 6 | L64: 81 | M64: 41 | N64: 11
A65: Lambeth | B65: 21 | C65: 76 | D65: 0 | E65: 0 | F65: 2346 | G65: 295 | H65: 256 | I65: 136 | J65: 2325 | K65: 219 | L65: 256 | M65: 136 | N65: 21
A66: Lewisham | B66: 25 | C66: 1 | D66: 0 | E66: 0 | F66: 737 | G66: 96 | H66: 65 | I66: 65 | J66: 712 | K66: 95 | L66: 65 | M66: 65 | N66: 24
A67: Merton | B67: 2 | C67: 0 | D67: 0 | E67: 0 | F67: 434 | G67: 12 | H67: 25 | I67: 48 | J67: 432 | K67: 12 | L67: 25 | M67: 48 | N67: 16
A68: Newham | B68: 6 | C68: 0 | D68: 0 | E68: 0 | F68: 4512 | G68: 135 | H68: 676 | I68: 730 | J68: 4506 | K68: 135 | L68: 676 | M68: 730 | N68: 25
A69: Redbridge | B69: 8 | C69: 0 | D69: 0 | E69: 0 | F69: 582 | G69: 24 | H69: 49 | I69: 136 | J69: 574 | K69: 24 | L69: 49 | M69: 136 | N69: 27
A70: Richmond upon Thames | B70: 0 | C70: 0 | D70: 0 | E70: 0 | F70: 361 | G70: 37 | H70: 5 | I70: 15 | J70: 361 | K70: 37 | L70: 5 | M70: 15 | N70: 14
A71: Southwark | B71: 1 | C71: 0 | D71: 0 | E71: 0 | F71: 627 | G71: 257 | H71: 106 | I71: 0 | J71: 626 | K71: 257 | L71: 106 | M71: 0 | N71: 37
A72: Sutton | B72: 42 | C72: 11 | D72: 0 | E72: 0 | F72: 798 | G72: 102 | H72: 18 | I72: 158 | J72: 756 | K72: 91 | L72: 18 | M72: 158 | N72: 26
A73: Tower Hamlets | B73: 43 | C73: 18 | D73: 0 | E73: 0 | F73: 6156 | G73: 545 | H73: 469 | I73: 760 | J73: 6113 | K73: 527 | L73: 469 | M73: 760 | N73: 22
A74: Waltham Forest | B74: 56 | C74: 182 | D74: 0 | E74: 0 | F74: 1530 | G74: 210 | H74: 184 | I74: 147 | J74: 1474 | K74: 28 | L74: 184 | M74: 147 | N74: 20
A75: Wandsworth | B75: 327 | C75: 94 | D75: 24 | E75: 0 | F75: 1891 | G75: 188 | H75: 439 | I75: 274 | J75: 1564 | K75: 94 | L75: 415 | M75: 274 | N75: 33
A76: Westminster | B76: 313 | C76: 31 | D76: 0 | E76: 0 | F76: 2646 | G76: 173 | H76: 399 | I76: 18 | J76: 2333 | K76: 142 | L76: 399 | M76: 18 | N76: 19
A77: Grand Total | B77: 1522 | C77: 845 | D77: 50 | E77: 0 | F77: 43279 | G77: 3775 | H77: 5182 | I77: 4457 | J77: 41757 | K77: 2930 | L77: 5132 | M77: 4457 | N77: 23
A79: Major' schemes are those proposing 10 residential units or more
A80: In refering to 'planning permissions' this table excludes certificates of Proposed Lawful Development and all types of prior approval, as well of Certificates of Existing Lawful Use.
A82: Table 3.20 Gross Conventional Housing Approvals by Number of Bedrooms 2016/17
A84: Borough | B84: Number of Bedrooms
B85: 1 | C85: 2 | D85: 3 | E85: 4+ | F85: Total | G85: % 3+
A86: Barking and Dagenham | B86: 585 | C86: 651 | D86: 134 | E86: 80 | F86: 1450 | G86: 15
A87: Barnet | B87: 1484 | C87: 1557 | D87: 566 | E87: 183 | F87: 3790 | G87: 20
A88: Bexley | B88: 903 | C88: 984 | D88: 648 | E88: 151 | F88: 2686 | G88: 30
A89: Brent | B89: 2129 | C89: 1498 | D89: 462 | E89: 68 | F89: 4157 | G89: 13
A90: Bromley | B90: 467 | C90: 492 | D90: 130 | E90: 169 | F90: 1258 | G90: 24
A91: Camden | B91: 472 | C91: 508 | D91: 255 | E91: 109 | F91: 1344 | G91: 27
A92: City of London | B92: 172 | C92: 182 | D92: 47 | E92: 3 | F92: 404 | G92: 12
A93: Croydon | B93: 1233 | C93: 920 | D93: 242 | E93: 76 | F93: 2471 | G93: 13
A94: Ealing | B94: 2261 | C94: 2130 | D94: 546 | E94: 133 | F94: 5070 | G94: 13
A95: Enfield | B95: 300 | C95: 290 | D95: 206 | E95: 75 | F95: 871 | G95: 32
A96: Greenwich | B96: 892 | C96: 937 | D96: 334 | E96: 78 | F96: 2241 | G96: 18
A97: Hackney | B97: 905 | C97: 922 | D97: 501 | E97: 59 | F97: 2387 | G97: 23
A98: Hammersmith and Fulham | B98: 254 | C98: 212 | D98: 142 | E98: 176 | F98: 784 | G98: 41
A99: Haringey | B99: 816 | C99: 786 | D99: 227 | E99: 38 | F99: 1867 | G99: 14
A100: Harrow | B100: 771 | C100: 508 | D100: 121 | E100: 23 | F100: 1423 | G100: 10
A101: Havering | B101: 513 | C101: 286 | D101: 142 | E101: 42 | F101: 983 | G101: 19
A102: Hillingdon | B102: 479 | C102: 431 | D102: 151 | E102: 84 | F102: 1145 | G102: 21
A103: Hounslow | B103: 1727 | C103: 1002 | D103: 346 | E103: 46 | F103: 3121 | G103: 13
A104: Islington | B104: 183 | C104: 325 | D104: 66 | E104: 15 | F104: 589 | G104: 14
A105: Kensington and Chelsea | B105: 289 | C105: 251 | D105: 140 | E105: 65 | F105: 745 | G105: 28
A106: Kingston upon Thames | B106: 520 | C106: 640 | D106: 243 | E106: 135 | F106: 1538 | G106: 25
A107: Lambeth | B107: 1469 | C107: 1527 | D107: 462 | E107: 67 | F107: 3525 | G107: 15
A108: Lewisham | B108: 596 | C108: 522 | D108: 164 | E108: 34 | F108: 1316 | G108: 15
A109: Merton | B109: 429 | C109: 413 | D109: 149 | E109: 101 | F109: 1092 | G109: 23
A110: Newham | B110: 2124 | C110: 2135 | D110: 1826 | E110: 445 | F110: 6530 | G110: 35
A111: Redbridge | B111: 603 | C111: 530 | D111: 138 | E111: 15 | F111: 1286 | G111: 12
A112: Richmond upon Thames | B112: 212 | C112: 307 | D112: 134 | E112: 60 | F112: 713 | G112: 27
A113: Southwark | B113: 627 | C113: 679 | D113: 263 | E113: 37 | F113: 1606 | G113: 19
A114: Sutton | B114: 545 | C114: 581 | D114: 234 | E114: 69 | F114: 1429 | G114: 21
A115: Tower Hamlets | B115: 4219 | C115: 2842 | D115: 1148 | E115: 194 | F115: 8403 | G115: 16
A116: Waltham Forest | B116: 997 | C116: 1147 | D116: 396 | E116: 83 | F116: 2623 | G116: 18
A117: Wandsworth | B117: 1499 | C117: 1592 | D117: 492 | E117: 145 | F117: 3728 | G117: 17
A118: Westminster | B118: 1340 | C118: 1385 | D118: 839 | E118: 292 | F118: 3856 | G118: 29
A119: London | B119: 32015 | C119: 29172 | D119: 11894 | E119: 3350 | F119: 76431 | G119: 20
A121: Table 3.21 Net Non-conventional Housing Approvals by Use 2016/17
A123: Borough | B123: Student hall bedrooms | C123: Care home bedrooms | D123: Hostel / HMO bedrooms | E123: Total rooms
A124: Barking and Dagenham | B124: 0 | C124: 0 | D124: 0 | E124: 0
A125: Barnet | B125: 0 | C125: 13 | D125: 2 | E125: 15
A126: Bexley | B126: 18 | C126: 80 | D126: 0 | E126: 98
A127: Brent | B127: 1665 | C127: 14 | D127: -10 | E127: 1669
A128: Bromley | B128: 0 | C128: -23 | D128: 7 | E128: -16
A129: Camden | B129: -277 | C129: 0 | D129: -64 | E129: -341
A130: City of London | B130: 0 | C130: 0 | D130: 0 | E130: 0
A131: Croydon | B131: 0 | C131: -25 | D131: 123 | E131: 98
A132: Ealing | B132: 459 | C132: -39 | D132: -68 | E132: 352
A133: Enfield | B133: -347 | C133: -1 | D133: 8 | E133: -340
A134: Greenwich | B134: 0 | C134: 0 | D134: 0 | E134: 0
A135: Hackney | B135: 0 | C135: 10 | D135: 341 | E135: 351
A136: Hammersmith and Fulham | B136: 306 | C136: 10 | D136: 0 | E136: 316
A137: Haringey | B137: 0 | C137: -15 | D137: 1 | E137: -14
A138: Harrow | B138: 0 | C138: -8 | D138: 65 | E138: 57
A139: Havering | B139: 0 | C139: 42 | D139: -12 | E139: 30
A140: Hillingdon | B140: 0 | C140: 0 | D140: 123 | E140: 123
A141: Hounslow | B141: 0 | C141: -14 | D141: 0 | E141: -14
A142: Islington | B142: 0 | C142: -16 | D142: -4 | E142: -20
A143: Kensington and Chelsea | B143: 0 | C143: 50 | D143: -103 | E143: -53
A144: Kingston upon Thames | B144: 17 | C144: 0 | D144: -34 | E144: -17
A145: Lambeth | B145: 466 | C145: 0 | D145: -13 | E145: 453
A146: Lewisham | B146: 0 | C146: 0 | D146: 46 | E146: 46
A147: Merton | B147: 0 | C147: 0 | D147: 0 | E147: 0
A148: Newham | B148: 511 | C148: -4 | D148: 6 | E148: 513
A149: Redbridge | B149: 0 | C149: 45 | D149: 0 | E149: 45
A150: Richmond upon Thames | B150: 0 | C150: 5 | D150: 0 | E150: 5
A151: Southwark | B151: 0 | C151: 0 | D151: -9 | E151: -9
A152: Sutton | B152: 0 | C152: 17 | D152: 40 | E152: 57
A153: Tower Hamlets | B153: -8 | C153: 0 | D153: 19 | E153: 11
A154: Waltham Forest | B154: 0 | C154: 0 | D154: 31 | E154: 31
A155: Wandsworth | B155: 0 | C155: 2 | D155: -9 | E155: -7
A156: Westminster | B156: -66 | C156: -10 | D156: 13 | E156: -63
A157: London | B157: 2744 | C157: 133 | D157: 499 | E157: 3376
A159: Table 3.22 Density of Residential Approvals by Borough (dwellings per hectare) 2008/09 to 2016/17
A160: See density tab
A162: Table 3.23 Net Conventional Housing Approvals by Permission Type 2016/17
A164: Borough | B164: Full | C164: Outline | D164: Reserved matters | E164: Amendments | F164: Office to Residential Prior Approval (Class O - formerly J) | G164: Other prior approvals | H164: S191 Certificate of Existing Lawful Use | I164: All permission types
A165: Barking and Dagenham | B165: 976 | C165: 36 | D165: 405 | E165: 0 | F165: 20 | G165: 1 | H165: 3 | I165: 1441
A166: Barnet | B166: 1702 | C166: 74 | D166: 0 | E166: 987 | F166: 578 | G166: 14 | H166: 1 | I166: 3356
A167: Bexley | B167: 937 | C167: 1223 | D167: 139 | E167: 0 | F167: 104 | G167: 3 | H167: 2 | I167: 2408
A168: Brent | B168: 1782 | C168: 590 | D168: 701 | E168: 25 | F168: 697 | G168: 23 | H168: 40 | I168: 3858
A169: Bromley | B169: 868 | C169: 15 | D169: 0 | E169: 0 | F169: 210 | G169: 14 | H169: 1 | I169: 1108
A170: Camden | B170: 694 | C170: 0 | D170: 286 | E170: 11 | F170: 22 | G170: 15 | H170: 73 | I170: 1101
A171: City of London | B171: 173 | C171: 0 | D171: 0 | E171: 231 | F171: 0 | G171: 0 | H171: 0 | I171: 404
A172: Croydon | B172: 1856 | C172: 84 | D172: 0 | E172: 0 | F172: 213 | G172: 69 | H172: 0 | I172: 2222
A173: Ealing | B173: 2574 | C173: 764 | D173: 792 | E173: 9 | F173: 266 | G173: 11 | H173: 100 | I173: 4516
A174: Enfield | B174: 595 | C174: 15 | D174: 0 | E174: 0 | F174: 81 | G174: 7 | H174: 47 | I174: 745
A175: Greenwich | B175: 1848 | C175: 0 | D175: 0 | E175: 294 | F175: 37 | G175: 6 | H175: 6 | I175: 2191
A176: Hackney | B176: 1008 | C176: 0 | D176: 302 | E176: 671 | F176: 7 | G176: 16 | H176: 55 | I176: 2059
A177: Hammersmith and Fulham | B177: 359 | C177: 0 | D177: 0 | E177: 0 | F177: 88 | G177: 2 | H177: 0 | I177: 449
A178: Haringey | B178: 1440 | C178: 144 | D178: 0 | E178: 0 | F178: 65 | G178: 33 | H178: 42 | I178: 1724
A179: Harrow | B179: 880 | C179: 0 | D179: 0 | E179: 0 | F179: 446 | G179: 1 | H179: 3 | I179: 1330
A180: Havering | B180: 510 | C180: 1 | D180: 48 | E180: 0 | F180: 341 | G180: 3 | H180: 0 | I180: 903
A181: Hillingdon | B181: 535 | C181: 9 | D181: 85 | E181: 185 | F181: 226 | G181: 1 | H181: 1 | I181: 1042
A182: Hounslow | B182: 1898 | C182: 0 | D182: 157 | E182: 0 | F182: 919 | G182: 9 | H182: 0 | I182: 2983
A183: Islington | B183: 427 | C183: 0 | D183: 0 | E183: 0 | F183: 36 | G183: 18 | H183: 44 | I183: 525
A184: Kensington and Chelsea | B184: 450 | C184: 0 | D184: 0 | E184: 0 | F184: 0 | G184: 2 | H184: 10 | I184: 462
A185: Kingston upon Thames | B185: 1195 | C185: 7 | D185: 106 | E185: 0 | F185: 95 | G185: 10 | H185: 1 | I185: 1414
A186: Lambeth | B186: 1384 | C186: 4 | D186: 0 | E186: 1823 | F186: 51 | G186: 24 | H186: 36 | I186: 3322
A187: Lewisham | B187: 1053 | C187: 0 | D187: 0 | E187: 53 | F187: 59 | G187: 5 | H187: 32 | I187: 1202
A188: Merton | B188: 796 | C188: 2 | D188: 0 | E188: 0 | F188: 96 | G188: 35 | H188: 20 | I188: 949
A189: Newham | B189: 1849 | C189: 3508 | D189: 927 | E189: 0 | F189: 88 | G189: 12 | H189: 65 | I189: 6449
A190: Redbridge | B190: 612 | C190: 2 | D190: 0 | E190: 363 | F190: 161 | G190: 10 | H190: 48 | I190: 1196
A191: Richmond upon Thames | B191: 280 | C191: 0 | D191: 0 | E191: 223 | F191: 113 | G191: 7 | H191: 4 | I191: 627
A192: Southwark | B192: 1302 | C192: 0 | D192: 122 | E192: 0 | F192: 79 | G192: 1 | H192: 9 | I192: 1513
A193: Sutton | B193: 493 | C193: 0 | D193: 734 | E193: 0 | F193: 88 | G193: 13 | H193: 0 | I193: 1328
A194: Tower Hamlets | B194: 5394 | C194: 36 | D194: 1907 | E194: 767 | F194: 185 | G194: 3 | H194: 7 | I194: 8299
A195: Waltham Forest | B195: 2058 | C195: 0 | D195: 0 | E195: 0 | F195: 156 | G195: 18 | H195: 68 | I195: 2300
A196: Wandsworth | B196: 1316 | C196: 431 | D196: 0 | E196: 1051 | F196: 220 | G196: 14 | H196: 23 | I196: 3055
A197: Westminster | B197: 3047 | C197: 0 | D197: 105 | E197: 0 | F197: 29 | G197: 0 | H197: 19 | I197: 3200
A198: London | B198: 42291 | C198: 6945 | D198: 6816 | E198: 6693 | F198: 5776 | G198: 400 | H198: 760 | I198: 69681
A200: Note: Amendments includes Minor Material Amendments and Variations to s106. Other prior approvals includes s192 Certificates of Proposed Lawful Development, but does not include office to residential prior approvals.

Sheet Starts
A1: Table 3.24 Conventional Starts by Tenure 2016/17
A3: Borough | B3: Existing | F3: Proposed | J3: Net | N3: % Aff.
B4: Market | C4: Soc.Rent | D4: Int. | E4: Aff. Rent | F4: Market | G4: Soc. Rent | H4: Int. | I4: Aff. Rent | J4: Market | K4: Soc. Rent | L4: Int. | M4: Aff. Rent
A5: Barking and Dagenham | B5: 21 | C5: 0 | D5: 0 | E5: 0 | F5: 575 | G5: 20 | H5: 49 | I5: 2 | J5: 554 | K5: 20 | L5: 49 | M5: 2 | N5: 11
A6: Barnet | B6: 286 | C6: 0 | D6: 0 | E6: 0 | F6: 1856 | G6: 195 | H6: 198 | I6: 69 | J6: 1570 | K6: 195 | L6: 198 | M6: 69 | N6: 23
A7: Bexley | B7: 58 | C7: 192 | D7: 0 | E7: 0 | F7: 356 | G7: 0 | H7: 159 | I7: 196 | J7: 298 | K7: -192 | L7: 159 | M7: 196 | N7: 35
A8: Brent | B8: 212 | C8: 187 | D8: 0 | E8: 0 | F8: 1199 | G8: 238 | H8: 200 | I8: 44 | J8: 987 | K8: 51 | L8: 200 | M8: 44 | N8: 23
A9: Bromley | B9: 73 | C9: 0 | D9: 0 | E9: 0 | F9: 897 | G9: 11 | H9: 43 | I9: 129 | J9: 824 | K9: 11 | L9: 43 | M9: 129 | N9: 18
A10: Camden | B10: 107 | C10: 0 | D10: 0 | E10: 0 | F10: 741 | G10: 58 | H10: 19 | I10: 0 | J10: 634 | K10: 58 | L10: 19 | M10: 0 | N10: 11
A11: City of London | B11: 0 | C11: 0 | D11: 0 | E11: 0 | F11: 250 | G11: 0 | H11: 0 | I11: 0 | J11: 250 | K11: 0 | L11: 0 | M11: 0 | N11: 0
A12: Croydon | B12: 153 | C12: 34 | D12: 0 | E12: 0 | F12: 2230 | G12: 105 | H12: 125 | I12: 142 | J12: 2077 | K12: 71 | L12: 125 | M12: 142 | N12: 14
A13: Ealing | B13: 210 | C13: 324 | D13: 0 | E13: 0 | F13: 1543 | G13: 292 | H13: 98 | I13: 18 | J13: 1333 | K13: -32 | L13: 98 | M13: 18 | N13: 6
A14: Enfield | B14: 131 | C14: 128 | D14: 0 | E14: 0 | F14: 629 | G14: 171 | H14: 70 | I14: 0 | J14: 498 | K14: 43 | L14: 70 | M14: 0 | N14: 18
A15: Greenwich | B15: 22 | C15: 0 | D15: 0 | E15: 0 | F15: 11346 | G15: 172 | H15: 957 | I15: 2081 | J15: 11324 | K15: 172 | L15: 957 | M15: 2081 | N15: 22
A16: Hackney | B16: 208 | C16: 189 | D16: 1 | E16: 0 | F16: 2065 | G16: 181 | H16: 282 | I16: 81 | J16: 1857 | K16: -8 | L16: 281 | M16: 81 | N16: 16
A17: Hammersmith and Fulham | B17: 193 | C17: 8 | D17: 0 | E17: 0 | F17: 745 | G17: 16 | H17: 38 | I17: 0 | J17: 552 | K17: 8 | L17: 38 | M17: 0 | N17: 8
A18: Haringey | B18: 167 | C18: 0 | D18: 0 | E18: 0 | F18: 2250 | G18: 0 | H18: 39 | I18: 296 | J18: 2083 | K18: 0 | L18: 39 | M18: 296 | N18: 14
A19: Harrow | B19: 65 | C19: 40 | D19: 0 | E19: 0 | F19: 1110 | G19: 1 | H19: 133 | I19: 154 | J19: 1045 | K19: -39 | L19: 133 | M19: 154 | N19: 19
A20: Havering | B20: 18 | C20: 36 | D20: 0 | E20: 0 | F20: 262 | G20: 9 | H20: 19 | I20: 15 | J20: 244 | K20: -27 | L20: 19 | M20: 15 | N20: 3
A21: Hillingdon | B21: 36 | C21: 31 | D21: 0 | E21: 0 | F21: 421 | G21: 23 | H21: 18 | I21: 4 | J21: 385 | K21: -8 | L21: 18 | M21: 4 | N21: 4
A22: Hounslow | B22: 8 | C22: 34 | D22: 14 | E22: 0 | F22: 1419 | G22: 57 | H22: 431 | I22: 273 | J22: 1411 | K22: 23 | L22: 417 | M22: 273 | N22: 34
A23: Islington | B23: 77 | C23: 28 | D23: 0 | E23: 0 | F23: 709 | G23: 246 | H23: 47 | I23: 0 | J23: 632 | K23: 218 | L23: 47 | M23: 0 | N23: 30
A24: Kensington and Chelsea | B24: 269 | C24: 2 | D24: 0 | E24: 0 | F24: 540 | G24: 11 | H24: 0 | I24: 0 | J24: 271 | K24: 9 | L24: 0 | M24: 0 | N24: 3
A25: Kingston upon Thames | B25: 39 | C25: 0 | D25: 0 | E25: 0 | F25: 287 | G25: 23 | H25: 25 | I25: 9 | J25: 248 | K25: 23 | L25: 25 | M25: 9 | N25: 19
A26: Lambeth | B26: 104 | C26: 76 | D26: 0 | E26: 0 | F26: 3121 | G26: 227 | H26: 296 | I26: 177 | J26: 3017 | K26: 151 | L26: 296 | M26: 177 | N26: 17
A27: Lewisham | B27: 72 | C27: 0 | D27: 30 | E27: 0 | F27: 1017 | G27: 64 | H27: 120 | I27: 40 | J27: 945 | K27: 64 | L27: 90 | M27: 40 | N27: 17
A28: Merton | B28: 85 | C28: 3 | D28: 0 | E28: 0 | F28: 476 | G28: 11 | H28: 0 | I28: 0 | J28: 391 | K28: 8 | L28: 0 | M28: 0 | N28: 2
A29: Newham | B29: 197 | C29: 0 | D29: 0 | E29: 0 | F29: 2632 | G29: 12 | H29: 217 | I29: 223 | J29: 2435 | K29: 12 | L29: 217 | M29: 223 | N29: 16
A30: Redbridge | B30: 57 | C30: 0 | D30: 1 | E30: 0 | F30: 853 | G30: 62 | H30: 22 | I30: 73 | J30: 796 | K30: 62 | L30: 21 | M30: 73 | N30: 16
A31: Richmond upon Thames | B31: 61 | C31: 0 | D31: 0 | E31: 0 | F31: 455 | G31: 74 | H31: 37 | I31: 0 | J31: 394 | K31: 74 | L31: 37 | M31: 0 | N31: 22
A32: Southwark | B32: 57 | C32: 51 | D32: 0 | E32: 0 | F32: 1568 | G32: 186 | H32: 116 | I32: 6 | J32: 1511 | K32: 135 | L32: 116 | M32: 6 | N32: 15
A33: Sutton | B33: 63 | C33: 20 | D33: 0 | E33: 0 | F33: 539 | G33: 111 | H33: 18 | I33: 0 | J33: 476 | K33: 91 | L33: 18 | M33: 0 | N33: 19
A34: Tower Hamlets | B34: 78 | C34: 18 | D34: 0 | E34: 0 | F34: 5348 | G34: 87 | H34: 387 | I34: 493 | J34: 5270 | K34: 69 | L34: 387 | M34: 493 | N34: 15
A35: Waltham Forest | B35: 72 | C35: 20 | D35: 0 | E35: 0 | F35: 569 | G35: 106 | H35: 93 | I35: 11 | J35: 497 | K35: 86 | L35: 93 | M35: 11 | N35: 28
A36: Wandsworth | B36: 471 | C36: 0 | D36: 24 | E36: 0 | F36: 8286 | G36: 320 | H36: 754 | I36: 330 | J36: 7815 | K36: 320 | L36: 730 | M36: 330 | N36: 15
A37: Westminster | B37: 348 | C37: 91 | D37: 0 | E37: 0 | F37: 2739 | G37: 155 | H37: 342 | I37: 41 | J37: 2391 | K37: 64 | L37: 342 | M37: 41 | N37: 16
A38: London | B38: 4018 | C38: 1512 | D38: 70 | E38: 0 | F38: 59033 | G38: 3244 | H38: 5352 | I38: 4907 | J38: 55015 | K38: 1732 | L38: 5282 | M38: 4907 | N38: 18
A40: Table 3.25 Conventional Starts in Major Planning Permissions by Tenure 2016/17
A42: Borough | B42: Existing units | F42: Proposed units | J42: Net units | N42: Net affordable %
B43: Market | C43: Social Rented | D43: Intermediate | E43: Affordable Rent | F43: Market | G43: Social Rented | H43: Intermediate | I43: Affordable Rent | J43: Market | K43: Social Rented | L43: Intermediate | M43: Affordable Rent
A44: Barking and Dagenham | B44: 18 | C44: 0 | D44: 0 | E44: 0 | F44: 521 | G44: 14 | H44: 49 | I44: 0 | J44: 503 | K44: 14 | L44: 49 | M44: 0 | N44: 11
A45: Barnet | B45: 149 | C45: 0 | D45: 0 | E45: 0 | F45: 1382 | G45: 195 | H45: 198 | I45: 69 | J45: 1233 | K45: 195 | L45: 198 | M45: 69 | N45: 27
A46: Bexley | B46: 38 | C46: 192 | D46: 0 | E46: 0 | F46: 207 | G46: 0 | H46: 159 | I46: 187 | J46: 169 | K46: -192 | L46: 159 | M46: 187 | N46: 48
A47: Brent | B47: 86 | C47: 187 | D47: 0 | E47: 0 | F47: 849 | G47: 238 | H47: 197 | I47: 44 | J47: 763 | K47: 51 | L47: 197 | M47: 44 | N47: 28
A48: Bromley | B48: 10 | C48: 0 | D48: 0 | E48: 0 | F48: 544 | G48: 11 | H48: 42 | I48: 129 | J48: 534 | K48: 11 | L48: 42 | M48: 129 | N48: 25
A49: Camden | B49: 9 | C49: 0 | D49: 0 | E49: 0 | F49: 408 | G49: 55 | H49: 19 | I49: 0 | J49: 399 | K49: 55 | L49: 19 | M49: 0 | N49: 16
A50: City of London | B50: 0 | C50: 0 | D50: 0 | E50: 0 | F50: 231 | G50: 0 | H50: 0 | I50: 0 | J50: 231 | K50: 0 | L50: 0 | M50: 0 | N50: 0
A51: Croydon | B51: 20 | C51: 33 | D51: 0 | E51: 0 | F51: 757 | G51: 96 | H51: 120 | I51: 137 | J51: 737 | K51: 63 | L51: 120 | M51: 137 | N51: 30
A52: Ealing | B52: 119 | C52: 318 | D52: 0 | E52: 0 | F52: 863 | G52: 292 | H52: 98 | I52: 17 | J52: 744 | K52: -26 | L52: 98 | M52: 17 | N52: 11
A53: Enfield | B53: 37 | C53: 128 | D53: 0 | E53: 0 | F53: 287 | G53: 137 | H53: 67 | I53: 0 | J53: 250 | K53: 9 | L53: 67 | M53: 0 | N53: 23
A54: Greenwich | B54: 8 | C54: 0 | D54: 0 | E54: 0 | F54: 11219 | G54: 171 | H54: 957 | I54: 2078 | J54: 11211 | K54: 171 | L54: 957 | M54: 2078 | N54: 22
A55: Hackney | B55: 47 | C55: 180 | D55: 1 | E55: 0 | F55: 1589 | G55: 173 | H55: 281 | I55: 81 | J55: 1542 | K55: -7 | L55: 280 | M55: 81 | N55: 19
A56: Hammersmith and Fulham | B56: 8 | C56: 8 | D56: 0 | E56: 0 | F56: 290 | G56: 16 | H56: 34 | I56: 0 | J56: 282 | K56: 8 | L56: 34 | M56: 0 | N56: 13
A57: Haringey | B57: 6 | C57: 0 | D57: 0 | E57: 0 | F57: 1802 | G57: 0 | H57: 32 | I57: 296 | J57: 1796 | K57: 0 | L57: 32 | M57: 296 | N57: 15
A58: Harrow | B58: 9 | C58: 40 | D58: 0 | E58: 0 | F58: 834 | G58: 0 | H58: 133 | I58: 148 | J58: 825 | K58: -40 | L58: 133 | M58: 148 | N58: 23
A59: Havering | B59: 0 | C59: 36 | D59: 0 | E59: 0 | F59: 9 | G59: 9 | H59: 14 | I59: 0 | J59: 9 | K59: -27 | L59: 14 | M59: 0 | N59: 0
A60: Hillingdon | B60: 0 | C60: 0 | D60: 0 | E60: 0 | F60: 255 | G60: 23 | H60: 18 | I60: 4 | J60: 255 | K60: 23 | L60: 18 | M60: 4 | N60: 15
A61: Hounslow | B61: 6 | C61: 34 | D61: 14 | E61: 0 | F61: 1061 | G61: 57 | H61: 431 | I61: 273 | J61: 1055 | K61: 23 | L61: 417 | M61: 273 | N61: 40
A62: Islington | B62: 7 | C62: 28 | D62: 0 | E62: 0 | F62: 385 | G62: 239 | H62: 47 | I62: 0 | J62: 378 | K62: 211 | L62: 47 | M62: 0 | N62: 41
A63: Kensington and Chelsea | B63: 57 | C63: 0 | D63: 0 | E63: 0 | F63: 249 | G63: 0 | H63: 0 | I63: 0 | J63: 192 | K63: 0 | L63: 0 | M63: 0 | N63: 0
A64: Kingston upon Thames | B64: 1 | C64: 0 | D64: 0 | E64: 0 | F64: 97 | G64: 23 | H64: 25 | I64: 9 | J64: 96 | K64: 23 | L64: 25 | M64: 9 | N64: 37
A65: Lambeth | B65: 18 | C65: 76 | D65: 0 | E65: 0 | F65: 2626 | G65: 226 | H65: 296 | I65: 168 | J65: 2608 | K65: 150 | L65: 296 | M65: 168 | N65: 19
A66: Lewisham | B66: 17 | C66: 0 | D66: 30 | E66: 0 | F66: 760 | G66: 56 | H66: 120 | I66: 40 | J66: 743 | K66: 56 | L66: 90 | M66: 40 | N66: 20
A67: Merton | B67: 2 | C67: 0 | D67: 0 | E67: 0 | F67: 125 | G67: 0 | H67: 0 | I67: 0 | J67: 123 | K67: 0 | L67: 0 | M67: 0 | N67: 0
A68: Newham | B68: 0 | C68: 0 | D68: 0 | E68: 0 | F68: 2349 | G68: 3 | H68: 217 | I68: 223 | J68: 2349 | K68: 3 | L68: 217 | M68: 223 | N68: 16
A69: Redbridge | B69: 3 | C69: 0 | D69: 0 | E69: 0 | F69: 579 | G69: 48 | H69: 20 | I69: 73 | J69: 576 | K69: 48 | L69: 20 | M69: 73 | N69: 20
A70: Richmond upon Thames | B70: 0 | C70: 0 | D70: 0 | E70: 0 | F70: 240 | G70: 74 | H70: 37 | I70: 0 | J70: 240 | K70: 74 | L70: 37 | M70: 0 | N70: 32
A71: Southwark | B71: 9 | C71: 51 | D71: 0 | E71: 0 | F71: 1290 | G71: 183 | H71: 116 | I71: 6 | J71: 1281 | K71: 132 | L71: 116 | M71: 6 | N71: 17
A72: Sutton | B72: 28 | C72: 11 | D72: 0 | E72: 0 | F72: 134 | G72: 102 | H72: 18 | I72: 0 | J72: 106 | K72: 91 | L72: 18 | M72: 0 | N72: 51
A73: Tower Hamlets | B73: 30 | C73: 18 | D73: 0 | E73: 0 | F73: 5172 | G73: 83 | H73: 387 | I73: 493 | J73: 5142 | K73: 65 | L73: 387 | M73: 493 | N73: 16
A74: Waltham Forest | B74: 8 | C74: 20 | D74: 0 | E74: 0 | F74: 146 | G74: 60 | H74: 93 | I74: 11 | J74: 138 | K74: 40 | L74: 93 | M74: 11 | N74: 51
A75: Wandsworth | B75: 290 | C75: 0 | D75: 24 | E75: 0 | F75: 7796 | G75: 320 | H75: 752 | I75: 326 | J75: 7506 | K75: 320 | L75: 728 | M75: 326 | N75: 15
A76: Westminster | B76: 174 | C76: 91 | D76: 0 | E76: 0 | F76: 2301 | G76: 155 | H76: 342 | I76: 33 | J76: 2127 | K76: 64 | L76: 342 | M76: 33 | N76: 17
A77: London | B77: 1214 | C77: 1451 | D77: 69 | E77: 0 | F77: 47357 | G77: 3059 | H77: 5319 | I77: 4845 | J77: 46143 | K77: 1608 | L77: 5250 | M77: 4845 | N77: 20
A79: ‘Major’ schemes are those proposing 10 residential units or more.
A80: ‘In referring to ‘planning permissions’ this table excludes certificates of Proposed Lawful Development and all types of prior approval, as well of Certificates of Existing Lawful Use.
A82: Table 3.26 Net Conventional Housing Starts by Permission Type 2016/17
A84: Borough | B84: Full | C84: Outline | D84: Reserved matters | E84: Amendments | F84: Office to Residential Prior Approval (Class O - formerly J) | G84: Other prior approvals | H84: S191 Certificate of Existing Lawful Use | I84: All permission types
A85: Barking and Dagenham | B85: 593 | C85: 0 | D85: 0 | E85: 0 | F85: 29 | G85: 0 | H85: 3 | I85: 625
A86: Barnet | B86: 1333 | C86: 149 | D86: 436 | E86: 12 | F86: 91 | G86: 10 | H86: 1 | I86: 2032
A87: Bexley | B87: 410 | C87: 25 | D87: 0 | E87: 0 | F87: 20 | G87: 4 | H87: 2 | I87: 461
A88: Brent | B88: 817 | C88: 0 | D88: 361 | E88: 0 | F88: 62 | G88: 2 | H88: 40 | I88: 1282
A89: Bromley | B89: 881 | C89: 0 | D89: 0 | E89: 0 | F89: 119 | G89: 6 | H89: 1 | I89: 1007
A90: Camden | B90: 597 | C90: 0 | D90: 0 | E90: 11 | F90: 22 | G90: 14 | H90: 67 | I90: 711
A91: City of London | B91: 19 | C91: 0 | D91: 0 | E91: 231 | F91: 0 | G91: 0 | H91: 0 | I91: 250
A92: Croydon | B92: 1537 | C92: 75 | D92: 24 | E92: 87 | F92: 679 | G92: 13 | H92: 0 | I92: 2415
A93: Ealing | B93: 810 | C93: 0 | D93: 118 | E93: 66 | F93: 324 | G93: 0 | H93: 99 | I93: 1417
A94: Enfield | B94: 539 | C94: 9 | D94: 0 | E94: 0 | F94: 7 | G94: 9 | H94: 47 | I94: 611
A95: Greenwich | B95: 1570 | C95: 12898 | D95: 0 | E95: 34 | F95: 21 | G95: 5 | H95: 6 | I95: 14534
A96: Hackney | B96: 820 | C96: 15 | D96: 645 | E96: 672 | F96: 5 | G96: 3 | H96: 51 | I96: 2211
A97: Hammersmith and Fulham | B97: 519 | C97: 0 | D97: 0 | E97: 0 | F97: 73 | G97: 6 | H97: 0 | I97: 598
A98: Haringey | B98: 1275 | C98: 1056 | D98: 0 | E98: 0 | F98: 41 | G98: 5 | H98: 41 | I98: 2418
A99: Harrow | B99: 1176 | C99: 30 | D99: 0 | E99: 0 | F99: 83 | G99: 1 | H99: 3 | I99: 1293
A100: Havering | B100: 110 | C100: 0 | D100: 0 | E100: 0 | F100: 139 | G100: 2 | H100: 0 | I100: 251
A101: Hillingdon | B101: 255 | C101: 0 | D101: 121 | E101: 0 | F101: 20 | G101: 2 | H101: 1 | I101: 399
A102: Hounslow | B102: 1821 | C102: 0 | D102: 0 | E102: 0 | F102: 303 | G102: 0 | H102: 0 | I102: 2124
A103: Islington | B103: 768 | C103: 0 | D103: 0 | E103: 1 | F103: 69 | G103: 18 | H103: 41 | I103: 897
A104: Kensington and Chelsea | B104: 270 | C104: 0 | D104: 0 | E104: 0 | F104: 0 | G104: 0 | H104: 10 | I104: 280
A105: Kingston upon Thames | B105: 222 | C105: 0 | D105: 0 | E105: 0 | F105: 77 | G105: 5 | H105: 1 | I105: 305
A106: Lambeth | B106: 1563 | C106: 0 | D106: 0 | E106: 1861 | F106: 175 | G106: 6 | H106: 36 | I106: 3641
A107: Lewisham | B107: 1084 | C107: 0 | D107: 0 | E107: 0 | F107: 21 | G107: 2 | H107: 32 | I107: 1139
A108: Merton | B108: 305 | C108: 11 | D108: 0 | E108: 0 | F108: 36 | G108: 27 | H108: 20 | I108: 399
A109: Newham | B109: 1232 | C109: 0 | D109: 1565 | E109: 1 | F109: 16 | G109: 8 | H109: 65 | I109: 2887
A110: Redbridge | B110: 453 | C110: 0 | D110: 0 | E110: 357 | F110: 85 | G110: 12 | H110: 45 | I110: 952
A111: Richmond upon Thames | B111: 432 | C111: 0 | D111: 0 | E111: 0 | F111: 64 | G111: 5 | H111: 4 | I111: 505
A112: Southwark | B112: 930 | C112: 800 | D112: 0 | E112: 0 | F112: 31 | G112: -2 | H112: 9 | I112: 1768
A113: Sutton | B113: 386 | C113: 0 | D113: 6 | E113: 0 | F113: 182 | G113: 11 | H113: 0 | I113: 585
A114: Tower Hamlets | B114: 3651 | C114: 508 | D114: 1269 | E114: 764 | F114: 19 | G114: 1 | H114: 7 | I114: 6219
A115: Waltham Forest | B115: 453 | C115: 0 | D115: 0 | E115: 0 | F115: 153 | G115: 12 | H115: 69 | I115: 687
A116: Wandsworth | B116: 5452 | C116: 0 | D116: 0 | E116: 3676 | F116: 36 | G116: 6 | H116: 25 | I116: 9195
A117: Westminster | B117: 2715 | C117: 0 | D117: 105 | E117: 0 | F117: 0 | G117: 0 | H117: 18 | I117: 2838
A118: London | B118: 34998 | C118: 15576 | D118: 4650 | E118: 7773 | F118: 3002 | G118: 193 | H118: 744 | I118: 66936
A120: Note: Amendments includes Minor Material Amendments and Variations to s106. Other prior approvals includes s192 Certificates of Proposed Lawful Development, but does not include office to residential prior approvals.
A122: Table 3.27 Gross Conventional Housing Starts by Number of Bedrooms 2016/17
A124: Borough | B124: Number of Bedrooms | G124: % 3+
B125: 1 | C125: 2 | D125: 3 | E125: 4+ | F125: Total
A126: Barking and Dagenham | B126: 185 | C126: 366 | D126: 5 | E126: 90 | F126: 646 | G126: 15
A127: Barnet | B127: 722 | C127: 907 | D127: 420 | E127: 269 | F127: 2318 | G127: 30
A128: Bexley | B128: 165 | C128: 374 | D128: 134 | E128: 38 | F128: 711 | G128: 24
A129: Brent | B129: 721 | C129: 629 | D129: 296 | E129: 35 | F129: 1681 | G129: 20
A130: Bromley | B130: 323 | C130: 441 | D130: 102 | E130: 214 | F130: 1080 | G130: 29
A131: Camden | B131: 289 | C131: 293 | D131: 169 | E131: 67 | F131: 818 | G131: 29
A132: City of London | B132: 112 | C132: 109 | D132: 29 | E132: 0 | F132: 250 | G132: 12
A133: Croydon | B133: 1472 | C133: 807 | D133: 226 | E133: 97 | F133: 2602 | G133: 12
A134: Ealing | B134: 845 | C134: 765 | D134: 285 | E134: 56 | F134: 1951 | G134: 17
A135: Enfield | B135: 329 | C135: 313 | D135: 171 | E135: 57 | F135: 870 | G135: 26
A136: Greenwich | B136: 7272 | C136: 5121 | D136: 2153 | E136: 10 | F136: 14556 | G136: 15
A137: Hackney | B137: 954 | C137: 1105 | D137: 425 | E137: 125 | F137: 2609 | G137: 21
A138: Hammersmith and Fulham | B138: 275 | C138: 259 | D138: 126 | E138: 139 | F138: 799 | G138: 33
A139: Haringey | B139: 1530 | C139: 742 | D139: 225 | E139: 88 | F139: 2585 | G139: 12
A140: Harrow | B140: 582 | C140: 645 | D140: 151 | E140: 20 | F140: 1398 | G140: 12
A141: Havering | B141: 129 | C141: 96 | D141: 46 | E141: 34 | F141: 305 | G141: 26
A142: Hillingdon | B142: 161 | C142: 173 | D142: 73 | E142: 59 | F142: 466 | G142: 28
A143: Hounslow | B143: 925 | C143: 850 | D143: 352 | E143: 53 | F143: 2180 | G143: 19
A144: Islington | B144: 310 | C144: 530 | D144: 123 | E144: 39 | F144: 1002 | G144: 16
A145: Kensington and Chelsea | B145: 215 | C145: 151 | D145: 117 | E145: 68 | F145: 551 | G145: 34
A146: Kingston upon Thames | B146: 133 | C146: 124 | D146: 53 | E146: 34 | F146: 344 | G146: 25
A147: Lambeth | B147: 1670 | C147: 1614 | D147: 442 | E147: 95 | F147: 3821 | G147: 14
A148: Lewisham | B148: 512 | C148: 545 | D148: 156 | E148: 28 | F148: 1241 | G148: 15
A149: Merton | B149: 186 | C149: 191 | D149: 62 | E149: 48 | F149: 487 | G149: 23
A150: Newham | B150: 1207 | C150: 1012 | D150: 743 | E150: 122 | F150: 3084 | G150: 28
A151: Redbridge | B151: 392 | C151: 504 | D151: 102 | E151: 12 | F151: 1010 | G151: 11
A152: Richmond upon Thames | B152: 138 | C152: 210 | D152: 106 | E152: 112 | F152: 566 | G152: 39
A153: Southwark | B153: 658 | C153: 851 | D153: 313 | E153: 54 | F153: 1876 | G153: 20
A154: Sutton | B154: 367 | C154: 183 | D154: 89 | E154: 29 | F154: 668 | G154: 18
A155: Tower Hamlets | B155: 3502 | C155: 2183 | D155: 571 | E155: 59 | F155: 6315 | G155: 10
A156: Waltham Forest | B156: 359 | C156: 304 | D156: 95 | E156: 21 | F156: 779 | G156: 15
A157: Wandsworth | B157: 2740 | C157: 5015 | D157: 1595 | E157: 340 | F157: 9690 | G157: 20
A158: Westminster | B158: 1120 | C158: 1176 | D158: 733 | E158: 248 | F158: 3277 | G158: 30
A159: London | B159: 27735 | C159: 25768 | D159: 10555 | E159: 3063 | F159: 67121 | G159: 19

Sheet Pipeline
A1: Table 3.28 Gross Conventional Housing Pipeline by Number of Bedrooms as at 31/03/2017
A3: Borough | B3: Number of Bedrooms
B4: 1 | C4: 2 | D4: 3 | E4: 4+ | F4: Not known | G4: Total | H4: % 3+
A5: Barking and Dagenham | B5: 2673 | C5: 7054 | D5: 3668 | E5: 1625 | F5: 0 | G5: 15020 | H5: 35
A6: Barnet | B6: 8431 | C6: 11145 | D6: 3930 | E6: 1359 | F6: 18 | G6: 24883 | H6: 21
A7: Bexley | B7: 1243 | C7: 1501 | D7: 817 | E7: 225 | F7: 1 | G7: 3787 | H7: 28
A8: Brent | B8: 3961 | C8: 4115 | D8: 1717 | E8: 304 | F8: 0 | G8: 10097 | H8: 20
A9: Bromley | B9: 1006 | C9: 1341 | D9: 294 | E9: 399 | F9: 2 | G9: 3042 | H9: 23
A10: Camden | B10: 2530 | C10: 2987 | D10: 1332 | E10: 434 | F10: 0 | G10: 7283 | H10: 24
A11: City of London | B11: 411 | C11: 377 | D11: 81 | E11: 20 | F11: 0 | G11: 889 | H11: 11
A12: Croydon | B12: 3795 | C12: 2778 | D12: 684 | E12: 382 | F12: 0 | G12: 7639 | H12: 14
A13: Ealing | B13: 5565 | C13: 7209 | D13: 2476 | E13: 837 | F13: 0 | G13: 16087 | H13: 21
A14: Enfield | B14: 731 | C14: 1086 | D14: 617 | E14: 262 | F14: 0 | G14: 2696 | H14: 33
A15: Greenwich | B15: 13542 | C15: 11461 | D15: 4493 | E15: 403 | F15: 770 | G15: 30669 | H15: 16
A16: Hackney | B16: 4046 | C16: 4180 | D16: 2077 | E16: 469 | F16: 588 | G16: 11360 | H16: 22
A17: Hammersmith and Fulham | B17: 6792 | C17: 5043 | D17: 2407 | E17: 685 | F17: 1472 | G17: 16399 | H17: 19
A18: Haringey | B18: 2344 | C18: 1822 | D18: 666 | E18: 245 | F18: 12 | G18: 5089 | H18: 18
A19: Harrow | B19: 2255 | C19: 2223 | D19: 410 | E19: 247 | F19: 0 | G19: 5135 | H19: 13
A20: Havering | B20: 978 | C20: 843 | D20: 449 | E20: 178 | F20: 0 | G20: 2448 | H20: 26
A21: Hillingdon | B21: 1842 | C21: 1915 | D21: 481 | E21: 210 | F21: 0 | G21: 4448 | H21: 16
A22: Hounslow | B22: 3670 | C22: 3177 | D22: 1024 | E22: 219 | F22: 31 | G22: 8121 | H22: 15
A23: Islington | B23: 1744 | C23: 1933 | D23: 578 | E23: 150 | F23: 0 | G23: 4405 | H23: 17
A24: Kensington and Chelsea | B24: 1515 | C24: 1496 | D24: 934 | E24: 406 | F24: 0 | G24: 4351 | H24: 31
A25: Kingston upon Thames | B25: 1052 | C25: 1038 | D25: 330 | E25: 243 | F25: 0 | G25: 2663 | H25: 22
A26: Lambeth | B26: 3626 | C26: 4491 | D26: 1493 | E26: 279 | F26: 0 | G26: 9889 | H26: 18
A27: Lewisham | B27: 3244 | C27: 3662 | D27: 908 | E27: 283 | F27: 3500 | G27: 11597 | H27: 10
A28: Merton | B28: 771 | C28: 947 | D28: 253 | E28: 203 | F28: 0 | G28: 2174 | H28: 21
A29: Newham | B29: 7132 | C29: 7454 | D29: 4378 | E29: 775 | F29: 4693 | G29: 24432 | H29: 21
A30: Redbridge | B30: 1277 | C30: 1140 | D30: 301 | E30: 136 | F30: 1 | G30: 2855 | H30: 15
A31: Richmond | B31: 572 | C31: 787 | D31: 294 | E31: 184 | F31: 1 | G31: 1838 | H31: 26
A32: Southwark | B32: 5335 | C32: 6861 | D32: 2536 | E32: 854 | F32: 1 | G32: 15587 | H32: 22
A33: Sutton | B33: 1254 | C33: 1444 | D33: 485 | E33: 149 | F33: 0 | G33: 3332 | H33: 19
A34: Tower Hamlets | B34: 13356 | C34: 10631 | D34: 4529 | E34: 706 | F34: 650 | G34: 29872 | H34: 18
A35: Waltham Forest | B35: 1463 | C35: 1879 | D35: 703 | E35: 109 | F35: 0 | G35: 4154 | H35: 20
A36: Wandsworth | B36: 6179 | C36: 9609 | D36: 3628 | E36: 918 | F36: 1 | G36: 20335 | H36: 22
A37: Westminster | B37: 3565 | C37: 3799 | D37: 2659 | E37: 738 | F37: 66 | G37: 10827 | H37: 31
A38: London | B38: 117901 | C38: 127430 | D38: 51635 | E38: 14636 | F38: 11807 | G38: 323409 | H38: 20
A40: Table 3.29 Conventional Pipeline at 31/03/2017
A42: Borough | B42: Not Started | E42: Started | H42: Total Pipeline
B43: Existing | C43: Proposed | D43: Net | E43: Existing | F43: Proposed | G43: Net | H43: Existing | I43: Proposed | J43: Net
A44: Barking and Dagenham | B44: 9 | C44: 2713 | D44: 2704 | E44: 1597 | F44: 12307 | G44: 10710 | H44: 1606 | I44: 15020 | J44: 13414
A45: Barnet | B45: 739 | C45: 12309 | D45: 11570 | E45: 2824 | F45: 12574 | G45: 9750 | H45: 3563 | I45: 24883 | J45: 21320
A46: Bexley | B46: 293 | C46: 2862 | D46: 2569 | E46: 255 | F46: 925 | G46: 670 | H46: 548 | I46: 3787 | J46: 3239
A47: Brent | B47: 281 | C47: 4023 | D47: 3742 | E47: 691 | F47: 6074 | G47: 5383 | H47: 972 | I47: 10097 | J47: 9125
A48: Bromley | B48: 160 | C48: 1330 | D48: 1170 | E48: 113 | F48: 1712 | G48: 1599 | H48: 273 | I48: 3042 | J48: 2769
A49: Camden | B49: 366 | C49: 2814 | D49: 2448 | E49: 1087 | F49: 4469 | G49: 3382 | H49: 1453 | I49: 7283 | J49: 5830
A50: City of London | B50: 3 | C50: 41 | D50: 38 | E50: 13 | F50: 848 | G50: 835 | H50: 16 | I50: 889 | J50: 873
A51: Croydon | B51: 223 | C51: 3368 | D51: 3145 | E51: 182 | F51: 4271 | G51: 4089 | H51: 405 | I51: 7639 | J51: 7234
A52: Ealing | B52: 1307 | C52: 9223 | D52: 7916 | E52: 3806 | F52: 6864 | G52: 3058 | H52: 5113 | I52: 16087 | J52: 10974
A53: Enfield | B53: 97 | C53: 1139 | D53: 1042 | E53: 516 | F53: 1557 | G53: 1041 | H53: 613 | I53: 2696 | J53: 2083
A54: Greenwich | B54: 479 | C54: 2561 | D54: 2082 | E54: 2326 | F54: 28108 | G54: 25782 | H54: 2805 | I54: 30669 | J54: 27864
A55: Hackney | B55: 2240 | C55: 6358 | D55: 4118 | E55: 2911 | F55: 5002 | G55: 2091 | H55: 5151 | I55: 11360 | J55: 6209
A56: Hammersmith and Fulham | B56: 1119 | C56: 10750 | D56: 9631 | E56: 715 | F56: 5649 | G56: 4934 | H56: 1834 | I56: 16399 | J56: 14565
A57: Haringey | B57: 183 | C57: 1693 | D57: 1510 | E57: 145 | F57: 3396 | G57: 3251 | H57: 328 | I57: 5089 | J57: 4761
A58: Harrow | B58: 134 | C58: 2736 | D58: 2602 | E58: 181 | F58: 2399 | G58: 2218 | H58: 315 | I58: 5135 | J58: 4820
A59: Havering | B59: 165 | C59: 1865 | D59: 1700 | E59: 382 | F59: 583 | G59: 201 | H59: 547 | I59: 2448 | J59: 1901
A60: Hillingdon | B60: 123 | C60: 1582 | D60: 1459 | E60: 77 | F60: 2866 | G60: 2789 | H60: 200 | I60: 4448 | J60: 4248
A61: Hounslow | B61: 185 | C61: 5002 | D61: 4817 | E61: 107 | F61: 3119 | G61: 3012 | H61: 292 | I61: 8121 | J61: 7829
A62: Islington | B62: 82 | C62: 353 | D62: 271 | E62: 398 | F62: 4052 | G62: 3654 | H62: 480 | I62: 4405 | J62: 3925
A63: Kensington and Chelsea | B63: 669 | C63: 1186 | D63: 517 | E63: 337 | F63: 3165 | G63: 2828 | H63: 1006 | I63: 4351 | J63: 3345
A64: Kingston upon Thames | B64: 144 | C64: 1839 | D64: 1695 | E64: 60 | F64: 824 | G64: 764 | H64: 204 | I64: 2663 | J64: 2459
A65: Lambeth | B65: 133 | C65: 1837 | D65: 1704 | E65: 1324 | F65: 8052 | G65: 6728 | H65: 1457 | I65: 9889 | J65: 8432
A66: Lewisham | B66: 87 | C66: 8505 | D66: 8418 | E66: 354 | F66: 3092 | G66: 2738 | H66: 441 | I66: 11597 | J66: 11156
A67: Merton | B67: 147 | C67: 1325 | D67: 1178 | E67: 133 | F67: 849 | G67: 716 | H67: 280 | I67: 2174 | J67: 1894
A68: Newham | B68: 28 | C68: 16334 | D68: 16306 | E68: 412 | F68: 8098 | G68: 7686 | H68: 440 | I68: 24432 | J68: 23992
A69: Redbridge | B69: 101 | C69: 1122 | D69: 1021 | E69: 78 | F69: 1733 | G69: 1655 | H69: 179 | I69: 2855 | J69: 2676
A70: Richmond upon Thames | B70: 120 | C70: 816 | D70: 696 | E70: 104 | F70: 1022 | G70: 918 | H70: 224 | I70: 1838 | J70: 1614
A71: Southwark | B71: 2843 | C71: 6085 | D71: 3242 | E71: 1572 | F71: 9502 | G71: 7930 | H71: 4415 | I71: 15587 | J71: 11172
A72: Sutton | B72: 62 | C72: 1471 | D72: 1409 | E72: 732 | F72: 1861 | G72: 1129 | H72: 794 | I72: 3332 | J72: 2538
A73: Tower Hamlets | B73: 111 | C73: 7558 | D73: 7447 | E73: 1095 | F73: 22314 | G73: 21219 | H73: 1206 | I73: 29872 | J73: 28666
A74: Waltham Forest | B74: 273 | C74: 2681 | D74: 2408 | E74: 72 | F74: 1473 | G74: 1401 | H74: 345 | I74: 4154 | J74: 3809
A75: Wandsworth | B75: 798 | C75: 4354 | D75: 3556 | E75: 1190 | F75: 15981 | G75: 14791 | H75: 1988 | I75: 20335 | J75: 18347
A76: Westminster | B76: 910 | C76: 4050 | D76: 3140 | E76: 729 | F76: 6777 | G76: 6048 | H76: 1639 | I76: 10827 | J76: 9188
A77: London | B77: 14614 | C77: 131885 | D77: 117271 | E77: 26518 | F77: 191518 | G77: 165000 | H77: 41132 | I77: 323403 | J77: 282271
A79: Table 3.30 Conventional Pipeline by Tenure 2016/17
A81: Borough | B81: Existing | F81: Proposed | J81: Net | N81: % Aff.
B82: Market | C82: Soc. Rent | D82: Int. | E82: Aff. Rent | F82: Market | G82: Soc. Rent | H82: Int. | I82: Aff. Rent | J82: Market | K82: Soc. Rent | L82: Int. | M82: Aff. Rent
A83: Barking and Dagenham | B83: 469 | C83: 1137 | D83: 0 | E83: 0 | F83: 9310 | G83: 2640 | H83: 2616 | I83: 454 | J83: 8841 | K83: 1503 | L83: 2616 | M83: 454 | N83: 34
A84: Barnet | B84: 1559 | C84: 2004 | D84: 0 | E84: 0 | F84: 20875 | G84: 2155 | H84: 1331 | I84: 522 | J84: 19316 | K84: 151 | L84: 1331 | M84: 522 | N84: 9
A85: Bexley | B85: 149 | C85: 393 | D85: 6 | E85: 0 | F85: 2714 | G85: 0 | H85: 417 | I85: 656 | J85: 2565 | K85: -393 | L85: 411 | M85: 656 | N85: 21
A86: Brent | B86: 459 | C86: 513 | D86: 0 | E86: 0 | F86: 7461 | G86: 1325 | H86: 1038 | I86: 273 | J86: 7002 | K86: 812 | L86: 1038 | M86: 273 | N86: 23
A87: Bromley | B87: 273 | C87: 0 | D87: 0 | E87: 0 | F87: 2739 | G87: 66 | H87: 110 | I87: 127 | J87: 2466 | K87: 66 | L87: 110 | M87: 127 | N87: 11
A88: Camden | B88: 812 | C88: 601 | D88: 40 | E88: 0 | F88: 5418 | G88: 1358 | H88: 442 | I88: 65 | J88: 4606 | K88: 757 | L88: 402 | M88: 65 | N88: 21
A89: City of London | B89: 16 | C89: 0 | D89: 0 | E89: 0 | F89: 862 | G89: 0 | H89: 0 | I89: 27 | J89: 846 | K89: 0 | L89: 0 | M89: 27 | N89: 3
A90: Croydon | B90: 314 | C90: 88 | D90: 2 | E90: 1 | F90: 6605 | G90: 181 | H90: 430 | I90: 423 | J90: 6291 | K90: 93 | L90: 428 | M90: 422 | N90: 13
A91: Ealing | B91: 1440 | C91: 3627 | D91: 46 | E91: 0 | F91: 11062 | G91: 2809 | H91: 1870 | I91: 346 | J91: 9622 | K91: -818 | L91: 1824 | M91: 346 | N91: 12
A92: Enfield | B92: 257 | C92: 356 | D92: 0 | E92: 0 | F92: 2220 | G92: 228 | H92: 155 | I92: 93 | J92: 1963 | K92: -128 | L92: 155 | M92: 93 | N92: 6
A93: Greenwich | B93: 170 | C93: 2332 | D93: 0 | E93: 303 | F93: 24463 | G93: 1651 | H93: 2123 | I93: 2432 | J93: 24293 | K93: -681 | L93: 2123 | M93: 2129 | N93: 13
A94: Hackney | B94: 750 | C94: 4124 | D94: 276 | E94: 1 | F94: 7997 | G94: 1585 | H94: 1598 | I94: 180 | J94: 7247 | K94: -2539 | L94: 1322 | M94: 179 | N94: -17
A95: Hammersmith and Fulham | B95: 1212 | C95: 621 | D95: 1 | E95: 0 | F95: 13488 | G95: 1405 | H95: 1399 | I95: 107 | J95: 12276 | K95: 784 | L95: 1398 | M95: 107 | N95: 16
A96: Haringey | B96: 320 | C96: 8 | D96: 0 | E96: 0 | F96: 4418 | G96: 104 | H96: 225 | I96: 342 | J96: 4098 | K96: 96 | L96: 225 | M96: 342 | N96: 14
A97: Harrow | B97: 210 | C97: 105 | D97: 0 | E97: 0 | F97: 4465 | G97: 5 | H97: 309 | I97: 356 | J97: 4255 | K97: -100 | L97: 309 | M97: 356 | N97: 12
A98: Havering | B98: 130 | C98: 417 | D98: 0 | E98: 0 | F98: 2282 | G98: 92 | H98: 58 | I98: 16 | J98: 2152 | K98: -325 | L98: 58 | M98: 16 | N98: -13
A99: Hillingdon | B99: 166 | C99: 33 | D99: 1 | E99: 0 | F99: 4139 | G99: 119 | H99: 91 | I99: 99 | J99: 3973 | K99: 86 | L99: 90 | M99: 99 | N99: 6
A100: Hounslow | B100: 210 | C100: 68 | D100: 14 | E100: 0 | F100: 6520 | G100: 213 | H100: 750 | I100: 638 | J100: 6310 | K100: 145 | L100: 736 | M100: 638 | N100: 19
A101: Islington | B101: 202 | C101: 278 | D101: 0 | E101: 0 | F101: 3056 | G101: 800 | H101: 356 | I101: 193 | J101: 2854 | K101: 522 | L101: 356 | M101: 193 | N101: 27
A102: Kensington and Chelsea | B102: 588 | C102: 412 | D102: 6 | E102: 0 | F102: 3418 | G102: 721 | H102: 207 | I102: 5 | J102: 2830 | K102: 309 | L102: 201 | M102: 5 | N102: 15
A103: Kingston upon Thames | B103: 196 | C103: 1 | D103: 1 | E103: 6 | F103: 2424 | G103: 24 | H103: 168 | I103: 47 | J103: 2228 | K103: 23 | L103: 167 | M103: 41 | N103: 9
A104: Lambeth | B104: 444 | C104: 1013 | D104: 0 | E104: 0 | F104: 7403 | G104: 1138 | H104: 750 | I104: 598 | J104: 6959 | K104: 125 | L104: 750 | M104: 598 | N104: 17
A105: Lewisham | B105: 174 | C105: 191 | D105: 30 | E105: 46 | F105: 9277 | G105: 580 | H105: 802 | I105: 938 | J105: 9103 | K105: 389 | L105: 772 | M105: 892 | N105: 18
A106: Merton | B106: 236 | C106: 44 | D106: 0 | E106: 0 | F106: 1924 | G106: 92 | H106: 88 | I106: 70 | J106: 1688 | K106: 48 | L106: 88 | M106: 70 | N106: 11
A107: Newham | B107: 191 | C107: 249 | D107: 0 | E107: 0 | F107: 19289 | G107: 1207 | H107: 2405 | I107: 1531 | J107: 19098 | K107: 958 | L107: 2405 | M107: 1531 | N107: 20
A108: Redbridge | B108: 175 | C108: 4 | D108: 0 | E108: 0 | F108: 2372 | G108: 220 | H108: 118 | I108: 145 | J108: 2197 | K108: 216 | L108: 118 | M108: 145 | N108: 18
A109: Richmond upon Thames | B109: 224 | C109: 0 | D109: 0 | E109: 0 | F109: 1655 | G109: 126 | H109: 40 | I109: 17 | J109: 1431 | K109: 126 | L109: 40 | M109: 17 | N109: 11
A110: Southwark | B110: 724 | C110: 3690 | D110: 1 | E110: 0 | F110: 11331 | G110: 2497 | H110: 1516 | I110: 243 | J110: 10607 | K110: -1193 | L110: 1515 | M110: 243 | N110: 5
A111: Sutton | B111: 130 | C111: 637 | D111: 27 | E111: 0 | F111: 2686 | G111: 268 | H111: 149 | I111: 229 | J111: 2556 | K111: -369 | L111: 122 | M111: 229 | N111: -1
A112: Tower Hamlets | B112: 348 | C112: 858 | D112: 0 | E112: 0 | F112: 23744 | G112: 2366 | H112: 1696 | I112: 2066 | J112: 23396 | K112: 1508 | L112: 1696 | M112: 2066 | N112: 18
A113: Waltham Forest | B113: 147 | C113: 198 | D113: 0 | E113: 0 | F113: 3275 | G113: 267 | H113: 350 | I113: 262 | J113: 3128 | K113: 69 | L113: 350 | M113: 262 | N113: 18
A114: Wandsworth | B114: 1248 | C114: 331 | D114: 151 | E114: 258 | F114: 16907 | G114: 817 | H114: 1733 | I114: 878 | J114: 15659 | K114: 486 | L114: 1582 | M114: 620 | N114: 15
A115: Westminster | B115: 1375 | C115: 264 | D115: 0 | E115: 0 | F115: 9001 | G115: 738 | H115: 945 | I115: 143 | J115: 7626 | K115: 474 | L115: 945 | M115: 143 | N115: 17
A116: London | B116: 15318 | C116: 24597 | D116: 602 | E116: 615 | F116: 254800 | G116: 27797 | H116: 26285 | I116: 14521 | J116: 239482 | K116: 3200 | L116: 25683 | M116: 13906 | N116: 15
A118: Table 3.31 Conventional Pipeline in Major Planning Permissions by Tenure 2016/17
A120: Borough | B120: Existing | F120: Proposed | J120: Net | N120: % Aff.
B121: Market | C121: Soc. Rent | D121: Int. | E121: Aff. Rent | F121: Market | G121: Soc. Rent | H121: Int. | I121: Aff. Rent | J121: Market | K121: Soc. Rent | L121: Int. | M121: Aff. Rent
A122: Barking and Dagenham | B122: 461 | C122: 1137 | D122: 0 | E122: 0 | F122: 9034 | G122: 2620 | H122: 2616 | I122: 452 | J122: 8573 | K122: 1483 | L122: 2616 | M122: 452 | N122: 35
A123: Barnet | B123: 1008 | C123: 1989 | D123: 0 | E123: 0 | F123: 18189 | G123: 2118 | H123: 1331 | I123: 506 | J123: 17181 | K123: 129 | L123: 1331 | M123: 506 | N123: 10
A124: Bexley | B124: 78 | C124: 393 | D124: 0 | E124: 0 | F124: 2002 | G124: 0 | H124: 406 | I124: 656 | J124: 1924 | K124: -393 | L124: 406 | M124: 656 | N124: 26
A125: Brent | B125: 130 | C125: 512 | D125: 0 | E125: 0 | F125: 5686 | G125: 1295 | H125: 1035 | I125: 273 | J125: 5556 | K125: 783 | L125: 1035 | M125: 273 | N125: 27
A126: Bromley | B126: 33 | C126: 0 | D126: 0 | E126: 0 | F126: 1388 | G126: 65 | H126: 109 | I126: 127 | J126: 1355 | K126: 65 | L126: 109 | M126: 127 | N126: 18
A127: Camden | B127: 327 | C127: 597 | D127: 39 | E127: 0 | F127: 3712 | G127: 1344 | H127: 442 | I127: 65 | J127: 3385 | K127: 747 | L127: 403 | M127: 65 | N127: 26
A128: City of London | B128: 14 | C128: 0 | D128: 0 | E128: 0 | F128: 783 | G128: 0 | H128: 0 | I128: 27 | J128: 769 | K128: 0 | L128: 0 | M128: 27 | N128: 3
A129: Croydon | B129: 64 | C129: 81 | D129: 0 | E129: 1 | F129: 3123 | G129: 177 | H129: 385 | I129: 420 | J129: 3059 | K129: 96 | L129: 385 | M129: 419 | N129: 23
A130: Ealing | B130: 993 | C130: 3619 | D130: 45 | E130: 0 | F130: 8799 | G130: 2806 | H130: 1868 | I130: 341 | J130: 7806 | K130: -813 | L130: 1823 | M130: 341 | N130: 15
A131: Enfield | B131: 119 | C131: 324 | D131: 0 | E131: 0 | F131: 1444 | G131: 176 | H131: 150 | I131: 93 | J131: 1325 | K131: -148 | L131: 150 | M131: 93 | N131: 7
A132: Greenwich | B132: 95 | C132: 2332 | D132: 0 | E132: 303 | F132: 23919 | G132: 1645 | H132: 2117 | I132: 2432 | J132: 23824 | K132: -687 | L132: 2117 | M132: 2129 | N132: 13
A133: Hackney | B133: 336 | C133: 4115 | D133: 269 | E133: 1 | F133: 6740 | G133: 1568 | H133: 1592 | I133: 180 | J133: 6404 | K133: -2547 | L133: 1323 | M133: 179 | N133: -19
A134: Hammersmith and Fulham | B134: 914 | C134: 621 | D134: 0 | E134: 0 | F134: 12429 | G134: 1401 | H134: 1397 | I134: 107 | J134: 11515 | K134: 780 | L134: 1397 | M134: 107 | N134: 17
A135: Haringey | B135: 61 | C135: 7 | D135: 0 | E135: 0 | F135: 3371 | G135: 84 | H135: 206 | I135: 336 | J135: 3310 | K135: 77 | L135: 206 | M135: 336 | N135: 16
A136: Harrow | B136: 32 | C136: 105 | D136: 0 | E136: 0 | F136: 2668 | G136: 2 | H136: 304 | I136: 341 | J136: 2636 | K136: -103 | L136: 304 | M136: 341 | N136: 17
A137: Havering | B137: 33 | C137: 398 | D137: 0 | E137: 0 | F137: 1396 | G137: 68 | H137: 53 | I137: 6 | J137: 1363 | K137: -330 | L137: 53 | M137: 6 | N137: -25
A138: Hillingdon | B138: 10 | C138: 31 | D138: 0 | E138: 0 | F138: 3111 | G138: 109 | H138: 86 | I138: 99 | J138: 3101 | K138: 78 | L138: 86 | M138: 99 | N138: 8
A139: Hounslow | B139: 69 | C139: 68 | D139: 14 | E139: 0 | F139: 4434 | G139: 212 | H139: 749 | I139: 638 | J139: 4365 | K139: 144 | L139: 735 | M139: 638 | N139: 26
A140: Islington | B140: 61 | C140: 274 | D140: 0 | E140: 0 | F140: 2325 | G140: 769 | H140: 356 | I140: 193 | J140: 2264 | K140: 495 | L140: 356 | M140: 193 | N140: 32
A141: Kensington and Chelsea | B141: 205 | C141: 410 | D141: 0 | E141: 0 | F141: 2850 | G141: 719 | H141: 192 | I141: 5 | J141: 2645 | K141: 309 | L141: 192 | M141: 5 | N141: 16
A142: Kingston upon Thames | B142: 63 | C142: 0 | D142: 0 | E142: 6 | F142: 1601 | G142: 22 | H142: 168 | I142: 47 | J142: 1538 | K142: 22 | L142: 168 | M142: 41 | N142: 13
A143: Lambeth | B143: 307 | C143: 1010 | D143: 0 | E143: 0 | F143: 6350 | G143: 1136 | H143: 750 | I143: 598 | J143: 6043 | K143: 126 | L143: 750 | M143: 598 | N143: 20
A144: Lewisham | B144: 81 | C144: 152 | D144: 30 | E144: 46 | F144: 8381 | G144: 570 | H144: 802 | I144: 936 | J144: 8300 | K144: 418 | L144: 772 | M144: 890 | N144: 20
A145: Merton | B145: 24 | C145: 40 | D145: 0 | E145: 0 | F145: 1088 | G145: 72 | H145: 87 | I145: 70 | J145: 1064 | K145: 32 | L145: 87 | M145: 70 | N145: 15
A146: Newham | B146: 151 | C146: 249 | D146: 0 | E146: 0 | F146: 18747 | G146: 1171 | H146: 2396 | I146: 1531 | J146: 18596 | K146: 922 | L146: 2396 | M146: 1531 | N146: 21
A147: Redbridge | B147: 53 | C147: 0 | D147: 0 | E147: 0 | F147: 1404 | G147: 187 | H147: 118 | I147: 136 | J147: 1351 | K147: 187 | L147: 118 | M147: 136 | N147: 25
A148: Richmond upon Thames | B148: 21 | C148: 0 | D148: 0 | E148: 0 | F148: 790 | G148: 111 | H148: 40 | I148: 15 | J148: 769 | K148: 111 | L148: 40 | M148: 15 | N148: 18
A149: Southwark | B149: 566 | C149: 3688 | D149: 0 | E149: 0 | F149: 10056 | G149: 2463 | H149: 1508 | I149: 243 | J149: 9490 | K149: -1225 | L149: 1508 | M149: 243 | N149: 5
A150: Sutton | B150: 69 | C150: 637 | D150: 27 | E150: 0 | F150: 1807 | G150: 268 | H150: 149 | I150: 229 | J150: 1738 | K150: -369 | L150: 122 | M150: 229 | N150: -1
A151: Tower Hamlets | B151: 273 | C151: 854 | D151: 0 | E151: 0 | F151: 22116 | G151: 2355 | H151: 1696 | I151: 2066 | J151: 21843 | K151: 1501 | L151: 1696 | M151: 2066 | N151: 19
A152: Waltham Forest | B152: 62 | C152: 198 | D152: 0 | E152: 0 | F152: 2481 | G152: 210 | H152: 350 | I152: 262 | J152: 2419 | K152: 12 | L152: 350 | M152: 262 | N152: 21
A153: Wandsworth | B153: 852 | C153: 331 | D153: 151 | E153: 258 | F153: 15211 | G153: 781 | H153: 1731 | I153: 866 | J153: 14359 | K153: 450 | L153: 1580 | M153: 608 | N153: 16
A154: Westminster | B154: 717 | C154: 243 | D154: 0 | E154: 0 | F154: 7189 | G154: 717 | H154: 931 | I154: 135 | J154: 6472 | K154: 474 | L154: 931 | M154: 135 | N154: 19
A155: London | B155: 8282 | C155: 24415 | D155: 575 | E155: 615 | F155: 214624 | G155: 27241 | H155: 26120 | I155: 14431 | J155: 206342 | K155: 2826 | L155: 25545 | M155: 13816 | N155: 17
A157: ‘Major’ schemes are those proposing 10 residential units or more.
A158: ‘In referring to ‘planning permissions’ this table excludes certificates of Proposed Lawful Development and all types of prior approval, as well of Certificates of Existing Lawful Use.
A160: Table 3.32 Net Conventional Housing Pipeline by Permission Type as at 31/03/2017
A162: Borough | B162: Full | C162: Outline | D162: Reserved matters | E162: Amendments | F162: Prior Approval (Class O - formerly J) | G162: Other prior approvals | H162: All permission types
A163: Barking and Dagenham | B163: 2332 | C163: 10290 | D163: 695 | E163: 0 | F163: 94 | G163: 3 | H163: 13414
A164: Barnet | B164: 7243 | C164: 10994 | D164: 1211 | E164: 768 | F164: 1085 | G164: 19 | H164: 21320
A165: Bexley | B165: 1509 | C165: 1225 | D165: 334 | E165: 0 | F165: 168 | G165: 3 | H165: 3239
A166: Brent | B166: 3907 | C166: 2757 | D166: 1534 | E166: 28 | F166: 871 | G166: 28 | H166: 9125
A167: Bromley | B167: 2078 | C167: 211 | D167: 2 | E167: 0 | F167: 464 | G167: 14 | H167: 2769
A168: Camden | B168: 4386 | C168: 576 | D168: 484 | E168: 11 | F168: 361 | G168: 12 | H168: 5830
A169: City of London | B169: 482 | C169: 0 | D169: 0 | E169: 391 | F169: 0 | G169: 0 | H169: 873
A170: Croydon | B170: 4358 | C170: 564 | D170: 196 | E170: 104 | F170: 1947 | G170: 65 | H170: 7234
A171: Ealing | B171: 4237 | C171: 4669 | D171: 1337 | E171: 9 | F171: 711 | G171: 11 | H171: 10974
A172: Enfield | B172: 1422 | C172: 516 | D172: 0 | E172: 0 | F172: 125 | G172: 20 | H172: 2083
A173: Greenwich | B173: 7212 | C173: 19148 | D173: 524 | E173: 902 | F173: 67 | G173: 11 | H173: 27864
A174: Hackney | B174: 1641 | C174: 2663 | D174: 750 | E174: 1076 | F174: 40 | G174: 39 | H174: 6209
A175: Hammersmith and Fulham | B175: 10459 | C175: 2689 | D175: 1076 | E175: -6 | F175: 338 | G175: 9 | H175: 14565
A176: Haringey | B176: 3292 | C176: 1318 | D176: 0 | E176: 0 | F176: 123 | G176: 28 | H176: 4761
A177: Harrow | B177: 2202 | C177: 1067 | D177: 289 | E177: 0 | F177: 1256 | G177: 6 | H177: 4820
A178: Havering | B178: 1539 | C178: 168 | D178: -202 | E178: 0 | F178: 384 | G178: 12 | H178: 1901
A179: Hillingdon | B179: 1583 | C179: 1642 | D179: 370 | E179: 152 | F179: 500 | G179: 1 | H179: 4248
A180: Hounslow | B180: 4019 | C180: 1393 | D180: 893 | E180: 0 | F180: 1509 | G180: 15 | H180: 7829
A181: Islington | B181: 2738 | C181: 930 | D181: 0 | E181: 0 | F181: 253 | G181: 4 | H181: 3925
A182: Kensington and Chelsea | B182: 2220 | C182: 344 | D182: 779 | E182: 0 | F182: 0 | G182: 2 | H182: 3345
A183: Kingston upon Thames | B183: 1952 | C183: 14 | D183: 106 | E183: -2 | F183: 370 | G183: 19 | H183: 2459
A184: Lambeth | B184: 4834 | C184: 840 | D184: 135 | E184: 2384 | F184: 212 | G184: 27 | H184: 8432
A185: Lewisham | B185: 2772 | C185: 7502 | D185: 455 | E185: 53 | F185: 370 | G185: 4 | H185: 11156
A186: Merton | B186: 1688 | C186: 14 | D186: 0 | E186: 0 | F186: 173 | G186: 19 | H186: 1894
A187: Newham | B187: 8374 | C187: 8465 | D187: 7062 | E187: 1 | F187: 79 | G187: 11 | H187: 23992
A188: Redbridge | B188: 1869 | C188: 2 | D188: 0 | E188: 370 | F188: 415 | G188: 20 | H188: 2676
A189: Richmond upon Thames | B189: 987 | C189: 2 | D189: 0 | E189: 223 | F189: 395 | G189: 7 | H189: 1614
A190: Southwark | B190: 7030 | C190: 3345 | D190: 615 | E190: 0 | F190: 181 | G190: 1 | H190: 11172
A191: Sutton | B191: 1438 | C191: 9 | D191: 708 | E191: 0 | F191: 365 | G191: 18 | H191: 2538
A192: Tower Hamlets | B192: 16216 | C192: 4846 | D192: 4556 | E192: 2288 | F192: 757 | G192: 3 | H192: 28666
A193: Waltham Forest | B193: 3262 | C193: 311 | D193: 0 | E193: 0 | F193: 215 | G193: 21 | H193: 3809
A194: Wandsworth | B194: 9945 | C194: 3074 | D194: 0 | E194: 4821 | F194: 490 | G194: 17 | H194: 18347
A195: Westminster | B195: 8623 | C195: 0 | D195: 193 | E195: 260 | F195: 112 | G195: 0 | H195: 9188
A196: London | B196: 137849 | C196: 91588 | D196: 24102 | E196: 13833 | F196: 14430 | G196: 469 | H196: 282271
A198: Note: Amendments includes Minor Material Amendments and Variations to s106. Other prior approvals includes s192 Certificates of Proposed Lawful Development, but does not include office to residential prior approvals.
A200: Table 3.33 Net Non-conventional Pipeline at 31/03/17
A202: Borough | B202: Not Started | C202: Started | D202: Total
A203: Barking and Dagenham | B203: 18 | C203: 176 | D203: 194
A204: Barnet | B204: 120 | C204: -124 | D204: -4
A205: Bexley | B205: 98 | C205: 234 | D205: 332
A206: Brent | B206: -8 | C206: 2341 | D206: 2333
A207: Bromley | B207: 146 | C207: -89 | D207: 57
A208: Camden | B208: -300 | C208: 727 | D208: 427
A209: City of London | B209: 0 | C209: -202 | D209: -202
A210: Croydon | B210: 0 | C210: 4 | D210: 4
A211: Ealing | B211: 38 | C211: 326 | D211: 364
A212: Enfield | B212: 18 | C212: -266 | D212: -248
A213: Greenwich | B213: -63 | C213: 745 | D213: 682
... 23 more rows

Sheet Density
A1: Table 3.16 Density of Residential Completions by Borough (dwellings per hectare) 2008/09 to 2016/17
A3: Borough | B3: 2008/09 | C3: 2009/10 | D3: 2010/11 | E3: 2011/12 | F3: 2012/03 | G3: 2013/14 | H3: 2014/15 | I3: 2015/16 | J3: 2016/17
A4: Barking and Dagenham | B4: 80.03719056 | C4: 133.720087 | D4: 273.2601834 | E4: 126.0989701 | F4: 66.94206122 | G4: 71.28914538 | H4: 99.77890993 | I4: 217.11092 | J4: 136.6120219
A5: Barnet | B5: 109.9990139 | C5: 102.1061294 | D5: 99.6465259 | E5: 69.73919998 | F5: 92.93633985 | G5: 93.14468877 | H5: 80.59885152 | I5: 112.3069409 | J5: 107.7622974
A6: Bexley | B6: 110.2187075 | C6: 83.4797891 | D6: 80.18737944 | E6: 98.7287436 | F6: 63.85516507 | G6: 98.01136364 | H6: 56.56999642 | I6: 95.53821529 | J6: 99.57367933
A7: Brent | B7: 133.0653921 | C7: 182.03713 | D7: 185.3049492 | E7: 146.2926829 | F7: 134.045584 | G7: 193.1320401 | H7: 150.5075534 | I7: 164.44667 | J7: 199.8846265
A8: Bromley | B8: 36.08721871 | C8: 48.67256637 | D8: 52.42004155 | E8: 35.5303385 | F8: 40.38433752 | G8: 30.625 | H8: 40.3812977 | I8: 58.02508845 | J8: 50.73135351
A9: Camden | B9: 136.2620998 | C9: 139.7956641 | D9: 139.0134529 | E9: 180.9696655 | F9: 188.8044628 | G9: 132.7267862 | H9: 187.9983214 | I9: 165.6374365 | J9: 111.5445265
A10: City of London | B10: 329.153605 | C10: 235.483871 | D10: 456.7307692 | E10: 507.1770335 | F10: 447.3684211 | G10: 439.8976982 | H10: 340.1253918 | I10: 315.8371041 | J10: 314.6417445
A11: Croydon | B11: 130.9661056 | C11: 96.57320872 | D11: 140.5742924 | E11: 153.9949166 | F11: 120.9206458 | G11: 164.3241111 | H11: 102.3072994 | I11: 138.9008158 | J11: 101.5243026
A12: Ealing | B12: 161.8325152 | C12: 152.5675794 | D12: 141.560983 | E12: 112.0927031 | F12: 93.77313482 | G12: 119.3726259 | H12: 122.9220909 | I12: 87.64527539 | J12: 186.7965608
A13: Enfield | B13: 64.89637306 | C13: 71.63323782 | D13: 61.33611147 | E13: 61.31852552 | F13: 90.78553955 | G13: 74.99089916 | H13: 73.30338141 | I13: 119.0579271 | J13: 59.69433212
A14: Greenwich | B14: 210.6546855 | C14: 145.3026382 | D14: 336.840319 | E14: 239.4565382 | F14: 233.2785088 | G14: 253.8355456 | H14: 282.5314206 | I14: 201.0820784 | J14: 183.0134749
A15: Hackney | B15: 199.5471271 | C15: 245.1466143 | D15: 234.6119536 | E15: 283.8695557 | F15: 117.8147454 | G15: 245.4917676 | H15: 416.3871586 | I15: 216.6845942 | J15: 188.1008668
A16: Hammersmith and Fulham | B16: 187.0385562 | C16: 300.1179245 | D16: 183.3653582 | E16: 243.2062216 | F16: 218.6147186 | G16: 392.8533333 | H16: 261.7861059 | I16: 211.6409953 | J16: 147.3961271
A17: Haringey | B17: 142.2879909 | C17: 107.0234114 | D17: 116.5019011 | E17: 200.3332716 | F17: 146.3285088 | G17: 108.7524996 | H17: 144.3396226 | I17: 138.1208711 | J17: 153.2582792
A18: Harrow | B18: 61.8648374 | C18: 82.88793481 | D18: 63.11360449 | E18: 88.99456522 | F18: 92.13675214 | G18: 65.00180672 | H18: 129.661752 | I18: 116.4860522 | J18: 169.1631003
A19: Havering | B19: 55.27195916 | C19: 99.07912688 | D19: 121.7179047 | E19: 58.44080129 | F19: 56.73758865 | G19: 46.254308 | H19: 51.66105664 | I19: 47.83415342 | J19: 78.2892641
A20: Hillingdon | B20: 91.23692752 | C20: 38.734086 | D20: 57.0273003 | E20: 71.63752636 | F20: 53.12529913 | G20: 59.80140578 | H20: 86.72224481 | I20: 82.53305498 | J20: 68.37862048
A21: Hounslow | B21: 157.7915714 | C21: 61.6124868 | D21: 74.87954161 | E21: 103.4551628 | F21: 77.75434897 | G21: 137.6425232 | H21: 130.3760718 | I21: 168.3218527 | J21: 145.6338028
A22: Islington | B22: 243.5551191 | C22: 271.3178295 | D22: 292.9430733 | E22: 285.3328884 | F22: 193.4731935 | G22: 235.7473035 | H22: 359.9942146 | I22: 166.9781931 | J22: 223.3598786
A23: Kensington and Chelsea | B23: 132.7319588 | C23: 101.8518519 | D23: 225.0169952 | E23: 192.1562451 | F23: 163.4515661 | G23: 139.9946087 | H23: 188.7020441 | I23: 146.6113416 | J23: 158.5106383
A24: Kingston upon Thames | B24: 75.43500512 | C24: 63.89365352 | D24: 62.15827338 | E24: 50.39750142 | F24: 34.36939629 | G24: 60.62355658 | H24: 86.19862466 | I24: 52.70281029 | J24: 88.10724106
A25: Lambeth | B25: 129.9069203 | C25: 195.1464099 | D25: 182.7171426 | E25: 177.0781109 | F25: 225.9186451 | G25: 216.0585834 | H25: 339.2542284 | I25: 204.7839883 | J25: 277.7563162
A26: Lewisham | B26: 161.0060999 | C26: 229.0767674 | D26: 133.1397395 | E26: 229.9785004 | F26: 127.2522523 | G26: 140.8385809 | H26: 206.7363531 | I26: 153.6758193 | J26: 152.8988033
A27: Merton | B27: 79.926653 | C27: 68.59357001 | D27: 65.18058691 | E27: 74.68945328 | F27: 45.7676072 | G27: 75.79972184 | H27: 103.0730775 | I27: 88.52910782 | J27: 92.69456681
A28: Newham | B28: 378.3945448 | C28: 260.2391387 | D28: 397.9223126 | E28: 316.2220785 | F28: 151.252101 | G28: 175.7422969 | H28: 296.5382468 | I28: 223.974032 | J28: 296.737712
A29: Redbridge | B29: 86.60251665 | C29: 373.1060606 | D29: 158.0297589 | E29: 107.6138343 | F29: 70.90136435 | G29: 102.4307655 | H29: 110.6293084 | I29: 146.5626989 | J29: 175.3955265
A30: Richmond upon Thames | B30: 58.03316181 | C30: 45.55524785 | D30: 106.414645 | E30: 70.78804348 | F30: 53.85779123 | G30: 88.57744802 | H30: 71.916941 | I30: 90.67882472 | J30: 67.44230042
A31: Southwark | B31: 334.2555083 | C31: 229.5081967 | D31: 224.3112053 | E31: 211.4222081 | F31: 365.857783 | G31: 295.7648546 | H31: 222.2569944 | I31: 163.0595909 | J31: 96.2634199
A32: Sutton | B32: 101.0336441 | C32: 57.7707295 | D32: 57.16035521 | E32: 106.2834729 | F32: 57.48663102 | G32: 149.4045832 | H32: 119.4527276 | I32: 112.6093294 | J32: 112.4627996
A33: Tower Hamlets | B33: 315.9568912 | C33: 361.2713888 | D33: 295.7542496 | E33: 479.1187739 | F33: 188.5291885 | G33: 454.9741602 | H33: 434.9985941 | I33: 550.2636645 | J33: 372.3083739
A34: Waltham Forest | B34: 122.6922178 | C34: 120.9144153 | D34: 110.5674007 | E34: 143.9749609 | F34: 128.2725159 | G34: 141.5724972 | H34: 141.9947867 | I34: 107.044579 | J34: 157.1411455
A35: Wandsworth | B35: 167.8644764 | C35: 150.2418055 | D35: 206.2877396 | E35: 386.8910349 | F35: 261.4141667 | G35: 211.6193481 | H35: 201.9147269 | I35: 283.2539392 | J35: 240.9140791
A36: Westminster | B36: 155.4691007 | C36: 198.6657772 | D36: 205.8578798 | E36: 218.0369628 | F36: 194.8807446 | G36: 193.0229803 | H36: 164.0464057 | I36: 185.6128827 | J36: 213.0269046
A37: London | B37: 139 | C37: 151 | D37: 137 | E37: 165 | F37: 135 | G37: 151 | H37: 171 | I37: 158 | J37: 153
A39: Table 3.22 Density of Residential Approvals by Borough (dwellings per hectare) 2008/09 to 2016/17
A41: Borough | B41: 2008/09 | C41: 2009/10 | D41: 2010/11 | E41: 2011/12 | F41: 2012/03 | G41: 2013/14 | H41: 2014/15 | I41: 2015/16 | J41: 2016/17
A42: Barking and Dagenham | B42: 80 | C42: 134 | D42: 273 | E42: 126 | F42: 67 | G42: 71 | H42: 100 | I42: 217 | J42: 137
A43: Barnet | B43: 110 | C43: 102 | D43: 100 | E43: 70 | F43: 93 | G43: 93 | H43: 81 | I43: 112 | J43: 108
A44: Bexley | B44: 110 | C44: 83 | D44: 80 | E44: 99 | F44: 64 | G44: 98 | H44: 57 | I44: 96 | J44: 100
A45: Brent | B45: 133 | C45: 182 | D45: 185 | E45: 146 | F45: 134 | G45: 193 | H45: 151 | I45: 164 | J45: 200
A46: Bromley | B46: 36 | C46: 49 | D46: 52 | E46: 36 | F46: 40 | G46: 31 | H46: 40 | I46: 58 | J46: 51
A47: Camden | B47: 136 | C47: 140 | D47: 139 | E47: 181 | F47: 189 | G47: 133 | H47: 188 | I47: 166 | J47: 112
A48: City of London | B48: 329 | C48: 235 | D48: 457 | E48: 507 | F48: 447 | G48: 440 | H48: 340 | I48: 316 | J48: 315
A49: Croydon | B49: 131 | C49: 97 | D49: 141 | E49: 154 | F49: 121 | G49: 164 | H49: 102 | I49: 139 | J49: 102
A50: Ealing | B50: 162 | C50: 153 | D50: 142 | E50: 112 | F50: 94 | G50: 119 | H50: 123 | I50: 88 | J50: 187
A51: Enfield | B51: 65 | C51: 72 | D51: 61 | E51: 61 | F51: 91 | G51: 75 | H51: 73 | I51: 119 | J51: 60
A52: Greenwich | B52: 211 | C52: 145 | D52: 337 | E52: 239 | F52: 233 | G52: 254 | H52: 283 | I52: 201 | J52: 183
A53: Hackney | B53: 200 | C53: 245 | D53: 235 | E53: 284 | F53: 118 | G53: 245 | H53: 416 | I53: 217 | J53: 188
A54: Hammersmith and Fulham | B54: 187 | C54: 300 | D54: 183 | E54: 243 | F54: 219 | G54: 393 | H54: 262 | I54: 212 | J54: 147
A55: Haringey | B55: 142 | C55: 107 | D55: 117 | E55: 200 | F55: 146 | G55: 109 | H55: 144 | I55: 138 | J55: 153
A56: Harrow | B56: 62 | C56: 83 | D56: 63 | E56: 89 | F56: 92 | G56: 65 | H56: 130 | I56: 116 | J56: 169
A57: Havering | B57: 55 | C57: 99 | D57: 122 | E57: 58 | F57: 57 | G57: 46 | H57: 52 | I57: 48 | J57: 78
A58: Hillingdon | B58: 91 | C58: 39 | D58: 57 | E58: 72 | F58: 53 | G58: 60 | H58: 87 | I58: 83 | J58: 68
A59: Hounslow | B59: 158 | C59: 62 | D59: 75 | E59: 103 | F59: 78 | G59: 138 | H59: 130 | I59: 168 | J59: 146
A60: Islington | B60: 244 | C60: 271 | D60: 293 | E60: 285 | F60: 193 | G60: 236 | H60: 360 | I60: 167 | J60: 223
A61: Kensington and Chelsea | B61: 133 | C61: 102 | D61: 225 | E61: 192 | F61: 163 | G61: 140 | H61: 189 | I61: 147 | J61: 159
A62: Kingston upon Thames | B62: 75 | C62: 64 | D62: 62 | E62: 50 | F62: 34 | G62: 61 | H62: 86 | I62: 53 | J62: 88
A63: Lambeth | B63: 130 | C63: 195 | D63: 183 | E63: 177 | F63: 226 | G63: 216 | H63: 339 | I63: 205 | J63: 278
A64: Lewisham | B64: 161 | C64: 229 | D64: 133 | E64: 230 | F64: 127 | G64: 141 | H64: 207 | I64: 154 | J64: 153
A65: Merton | B65: 80 | C65: 69 | D65: 65 | E65: 75 | F65: 46 | G65: 76 | H65: 103 | I65: 89 | J65: 93
A66: Newham | B66: 378 | C66: 260 | D66: 398 | E66: 316 | F66: 151 | G66: 176 | H66: 297 | I66: 224 | J66: 297
A67: Redbridge | B67: 87 | C67: 373 | D67: 158 | E67: 108 | F67: 71 | G67: 102 | H67: 111 | I67: 147 | J67: 175
A68: Richmond upon Thames | B68: 58 | C68: 46 | D68: 106 | E68: 71 | F68: 54 | G68: 89 | H68: 72 | I68: 91 | J68: 67
A69: Southwark | B69: 334 | C69: 230 | D69: 224 | E69: 211 | F69: 366 | G69: 296 | H69: 222 | I69: 163 | J69: 96
A70: Sutton | B70: 101 | C70: 58 | D70: 57 | E70: 106 | F70: 57 | G70: 149 | H70: 119 | I70: 113 | J70: 112
A71: Tower Hamlets | B71: 316 | C71: 361 | D71: 296 | E71: 479 | F71: 189 | G71: 455 | H71: 435 | I71: 550 | J71: 372
A72: Waltham Forest | B72: 123 | C72: 121 | D72: 111 | E72: 144 | F72: 128 | G72: 142 | H72: 142 | I72: 107 | J72: 157
A73: Wandsworth | B73: 168 | C73: 150 | D73: 206 | E73: 387 | F73: 261 | G73: 212 | H73: 202 | I73: 283 | J73: 241
A74: Westminster | B74: 155 | C74: 199 | D74: 206 | E74: 218 | F74: 195 | G74: 193 | H74: 164 | I74: 186 | J74: 213
A75: London | B75: 139 | C75: 151 | D75: 137 | E75: 165 | F75: 135 | G75: 151 | H75: 171 | I75: 158 | J75: 153

Sheet Accessible dwellings
A1: Table 3.37 New Build Homes Meeting Accessible Housing Standards M4(2) and M4(3) Approved 2016/17
A3: Borough | B3: % M4(2) Compliant | C3: % M4(3) Compliant
A4: Barking and Dagenham | B4: 90 | C4: 9
A5: Barnet | B5: 90 | C5: 3
A6: Bexley | B6: 91 | C6: 9
A7: Brent | B7: 88 | C7: 11
A8: Bromley | B8: 20 | C8: 2
A9: Camden | B9: 84 | C9: 9
A10: City of London | B10: 59 | C10: 39
A11: Croydon | B11: 42 | C11: 2
A12: Ealing | B12: 88 | C12: 10
A13: Enfield | B13: 35 | C13: 8
A14: Greenwich | B14: 31 | C14: 4
A15: Hackney | B15: 77 | C15: 10
A16: Hammersmith and Fulham | B16: 64 | C16: 13
A17: Haringey | B17: 91 | C17: 9
A18: Harrow | B18: 83 | C18: 17
A19: Havering | B19: 45 | C19: 5
A20: Hillingdon | B20: 80 | C20: 8
A21: Hounslow | B21: 33 | C21: 3
A22: Islington | B22: 94 | C22: 5
A23: Kensington and Chelsea | B23: 49 | C23: 11
A24: Kingston upon Thames | B24: 77 | C24: 8
A25: Lambeth | B25: 82 | C25: 11
A26: Lewisham | B26: 77 | C26: 15
A27: Merton | B27: 92 | C27: 3
A28: Newham | B28: 74 | C28: 9
A29: Redbridge | B29: 43 | C29: 8
A30: Richmond upon Thames | B30: 87 | C30: 7
A31: Southwark | B31: 31 | C31: 6
A32: Sutton | B32: 84 | C32: 10
A33: Tower Hamlets | B33: 90 | C33: 10
A34: Waltham Forest | B34: 76 | C34: 9
A35: Wandsworth | B35: 78 | C35: 10
A36: Westminster | B36: 82 | C36: 10
A37: London | B37: 76 | C37: 9
A39: Notes: Only schemes that are 100% New Build are included in the above table. Split schemes (some new build and some conversion of existing buildings) are not taken into account. M4(2) and M4(3) replaced Lifetime Homes and Wheelchair Accessible Homes standards in London on all approvals granted from 01/10/2015 onwards. Although homes may be designed to these standards, they are only counted if compliance with these standards is conditioned in the decision notice.
A41: Table 3.38 Net approvals of specialist housing 2016/17
A43: Borough | B43: Specialist housing for older people | C43: Other sheltered accommodation (C3) | D43: Non-self-contained rooms for older people
A44: Barking and Dagenham | B44: 0 | C44: 1 | D44: 0
A45: Barnet | B45: 32 | C45: 1 | D45: 9
A46: Bexley | B46: 74 | C46: 0 | D46: 80
A47: Brent | B47: 0 | C47: -27 | D47: 8
A48: Bromley | B48: 0 | C48: -1 | D48: 12
A49: Camden | B49: 38 | C49: 0 | D49: 0
A50: City of London | B50: 0 | C50: 0 | D50: 0
A51: Croydon | B51: 75 | C51: -1 | D51: 3
A52: Ealing | B52: 0 | C52: 0 | D52: -29
A53: Enfield | B53: 0 | C53: 11 | D53: 7
A54: Greenwich | B54: 0 | C54: 38 | D54: 0
A55: Hackney | B55: 0 | C55: 0 | D55: 10
A56: Hammersmith and Fulham | B56: 0 | C56: 0 | D56: 0
A57: Haringey | B57: 0 | C57: 5 | D57: -18
A58: Harrow | B58: 58 | C58: 0 | D58: -6
A59: Havering | B59: 9 | C59: -19 | D59: 0
A60: Hillingdon | B60: 0 | C60: -1 | D60: 0
A61: Hounslow | B61: 94 | C61: 0 | D61: 0
A62: Islington | B62: 0 | C62: 0 | D62: 0
A63: Kensington and Chelsea | B63: 0 | C63: 0 | D63: 39
A64: Kingston upon Thames | B64: 0 | C64: 0 | D64: 2
A65: Lambeth | B65: 105 | C65: 1 | D65: 0
A66: Lewisham | B66: 53 | C66: 0 | D66: 0
A67: Merton | B67: 9 | C67: 1 | D67: 0
A68: Newham | B68: 0 | C68: 0 | D68: -6
A69: Redbridge | B69: 0 | C69: 0 | D69: 0
A70: Richmond upon Thames | B70: 0 | C70: 4 | D70: 0
A71: Southwark | B71: 0 | C71: 0 | D71: 0
A72: Sutton | B72: 0 | C72: 0 | D72: 74
A73: Tower Hamlets | B73: 28 | C73: 0 | D73: 0
A74: Waltham Forest | B74: 0 | C74: 0 | D74: -4
A75: Wandsworth | B75: 13 | C75: 0 | D75: 0
A76: Westminster | B76: 36 | C76: 0 | D76: 0
A77: London | B77: 624 | C77: 13 | D77: 181
A79: Note: Changes in non-self-contained accommodation are only recorded on LDD if they meet the criteria for submission, either by proposing a change of 7 rooms or more, or by meeting another criteria such as a loss or gain of residential units.

Sheet MHCLG data
A1: Table 3.34 Affordable Housing Delivery by Type | H1: Table 3.35 Affordable Delivery in London by Tenure 2016/17
A3: Affordable Housing | B3: 2012/13 | C3: 2013/14 | D3: 2014/15 | E3: 2015/16 | F3: 2016/17 | H3: Borough | I3: Social rent | J3: Affordable Rent | K3: Intermediate | L3: Total
A4: Social Rent | B4: 5060 | C4: 3590 | D4: 3160 | E4: 1060 | F4: 1150 | H4: Barking and Dagenham | I4: 0 | J4: 50 | K4: 10 | L4: 60
A5: Affordable Rent | B5: 480 | C5: 2400 | D5: 9630 | E5: 2810 | F5: 3170 | H5: Barnet | I5: 0 | J5: 260 | K5: 60 | L5: 320
A6: Intermediate Affordable Housing | B6: 3360 | C6: 3390 | D6: 5440 | E6: 1920 | F6: 2650 | H6: Bexley | I6: 0 | J6: 50 | K6: 20 | L6: 70
A7: All Affordable | B7: 8910 | C7: 9380 | D7: 18230 | E7: 5790 | F7: 6960 | H7: Brent | I7: 0 | J7: 200 | K7: 20 | L7: 230
H8: Bromley | I8: 0 | J8: 40 | K8: 40 | L8: 70
A9: MHCLG live table 1000 and statistical release for full notes and definitions | H9: Camden | I9: 10 | J9: 50 | K9: 20 | L9: 70
H10: City of London | I10: 0 | J10: 0 | K10: 0 | L10: 0
H11: Croydon | I11: 20 | J11: 80 | K11: 90 | L11: 190
H12: Ealing | I12: 0 | J12: 10 | K12: 20 | L12: 30
H13: Enfield | I13: 20 | J13: 130 | K13: 220 | L13: 370
H14: Greenwich | I14: 270 | J14: 120 | K14: 90 | L14: 470
H15: Hackney | I15: 50 | J15: 70 | K15: 40 | L15: 170
H16: Hammersmith and Fulham | I16: 0 | J16: 0 | K16: 50 | L16: 50
H17: Haringey | I17: 0 | J17: 170 | K17: 20 | L17: 190
H18: Harrow | I18: 0 | J18: 70 | K18: 10 | L18: 80
H19: Havering | I19: 0 | J19: 10 | K19: 30 | L19: 40
H20: Hillingdon | I20: 60 | J20: 20 | K20: 40 | L20: 120
H21: Hounslow | I21: 140 | J21: 120 | K21: 40 | L21: 290
H22: Islington | I22: 120 | J22: 20 | K22: 60 | L22: 190
H23: Kensington and Chelsea | I23: 0 | J23: 0 | K23: 0 | L23: 10
H24: Kingston upon Thames | I24: 0 | J24: 110 | K24: 0 | L24: 110
H25: Lambeth | I25: 0 | J25: 10 | K25: 70 | L25: 80
H26: Lewisham | I26: 10 | J26: 160 | K26: 120 | L26: 290
H27: Merton | I27: 0 | J27: 10 | K27: 0 | L27: 10
H28: Newham | I28: 110 | J28: 290 | K28: 440 | L28: 840
H29: Redbridge | I29: 0 | J29: 50 | K29: 10 | L29: 60
H30: Richmond upon Thames | I30: 0 | J30: 40 | K30: 20 | L30: 60
H31: Southwark | I31: 200 | J31: 50 | K31: 140 | L31: 390
H32: Sutton | I32: 10 | J32: 50 | K32: 40 | L32: 100
H33: Tower Hamlets | I33: 70 | J33: 660 | K33: 350 | L33: 1090
H34: Waltham Forest | I34: 10 | J34: 40 | K34: 70 | L34: 110
H35: Wandsworth | I35: 0 | J35: 90 | K35: 240 | L35: 330
H36: Westminster | I36: 60 | J36: 150 | K36: 100 | L36: 300
H37: London | I37: 0 | J37: 0 | K37: 200 | L37: 200
H38: Not recorded | I38: 0 | J38: 10 | K38: 50 | L38: 50
H40: Source: MHCLG. Figures rounded to the nearest 10.

Sheet CIL
A1: Table 3.39 Developer Contributions Towards Funding Crossrail (£M). Net of CIL Administration Costs
A3: S106 | B3: Year | C3: CIL
A4: 0.24 | B4: 2010/11 | C4: 0
A5: 1.43 | B5: 2011/12 | C5: 0
A6: 17.2 | B6: 2012/13 | C6: 6.09
A7: 13.31 | B7: 2013/14 | C7: 46.69
A8: 13.69 | B8: 2014/15 | C8: 73.19
A9: 30.24 | B9: 2015/16 | C9: 118.64
A10: 24.9 | B10: 2016/17 | C10: 136.86
A11: 5.88 | B11: 2017/18* | C11: 80.76
B12: 2018/19
B13: 2019/20
A14: 106.89 | B14: Total | C14: 462.23
A17: Table 3.39A Use of CIL Receipts
A19: Category | B19: £
A20: Total CIL Expenditure | B20: 462230922
A21: amount used to repay borrowing | B21: 0
A22: amount spent (2017/18) on administration by TfL/ GLA (up to 1%) | B22: 600,000#
A23: amount spent (2017/18) on administration by
A24: collecting authorities (up to 4%) | B24: £3,570,498##
A25: amount of CIL ‘in-hand’ | B25: 0
A27: Source TfL

Sheet Planning Decisions
A1: Table 3.42 Planning Applications Referred to the Mayor
B3: 2000-2007 | C3: 2008 | D3: 2009 | E3: 2010 | F3: 2011 | G3: 2012 | H3: 2013 | I3: 2014 | J3: 2015 | K3: 2016 | L3: 2017 | M3: 2000-2017
A4: Total | B4: 1871 | C4: 334 | D4: 240 | E4: 258 | F4: 300 | G4: 307 | H4: 359 | I4: 373 | J4: 454 | K4: 389 | L4: 382 | M4: 5267
A5: Strategic Call-ins | B5: - | C5: - | D5: 2 | E5: 1 | F5: 2 | G5: 1 | H5: 2 | I5: 1 | J5: 5 | K5: 3 | L5: 4 | M5: 21
A7: GLA Planning
